Service area,Service sub division,TVBC Service,Expense type,Detailed expense type,TVBC account code,Date Paid,Transaction Reference, Nett Value ,Supplier Name
"Highways, Roads & Transport",Parking Services,Plan Pol & Transport,Premises related Expenditure,Repairs Alterations & Maintenance of Buildings,Car Park General Repairs,22/02/2024,506919,-11159.4,Spear Electrical Limited
Central Services,Corporate & Democratic Core,Corporate & Democratic,Supplies & Services,"Equipment, Furniture & Materials",IT Supp and Serv AMP,29/02/2024,490974,-3285.98,Advanced Business Software And Solutions Ltd
External Trading Accounts,Business Parks,Premises & Asset Management,Premises related Expenditure,Energy Costs,Electricity,01/02/2024,503486,-1014.61,Npower
Cultural & Related,Culture & Heritage,Premises & Asset Management,Premises related Expenditure,Energy Costs,Electricity,01/02/2024,503471,-690.83,Npower
Cultural & Related,Culture & Heritage,Premises & Asset Management,Premises related Expenditure,Energy Costs,Electricity,01/02/2024,503469,-670.42,Npower
Cultural & Related,Open Spaces,Community and Leisure ,Premises related Expenditure,Energy Costs,Electricity,01/02/2024,503473,-652.58,Npower
Cultural & Related,Recreation & Sport,Community and Leisure ,Premises related Expenditure,Energy Costs,Electricity,29/02/2024,506592,-644.87,Npower
Cultural & Related,Open Spaces,Environmental,Premises related Expenditure,Water Services,Water And Sewerage Charges,08/02/2024,499879,-580.35,Business Stream
Environmental & Regulatory,Regulatory Services,Premises & Asset Management,Premises related Expenditure,Energy Costs,Electricity,01/02/2024,503470,-469.32,Npower
Central Services to the Public,Management & Support Services,Environmental,Supplies & Services,Miscellaneous Expenses,Vehicle insurance claims,29/02/2024,507660,500, Wild View Cameras
"Highways, Roads & Transport",Parking Services,Plan Pol & Transport,Premises related Expenditure,Repairs Alterations & Maintenance of Buildings,Car Park General Repairs,01/02/2024,502786,418.25,Pattco
"Highways, Roads & Transport",Parking Services,Plan Pol & Transport,Premises related Expenditure,Repairs Alterations & Maintenance of Buildings,Car Park General Repairs,08/02/2024,502787,418.25,Pattco
"Highways, Roads & Transport",Parking Services,Plan Pol & Transport,Premises related Expenditure,Repairs Alterations & Maintenance of Buildings,Car Park General Repairs,08/02/2024,502788,418.25,Pattco
Environmental & Regulatory,Waste management,Environmental,Transport Related Expenditure,Direct Transport Costs,Repair Materials,29/02/2024,506267,418.89,Dennis Eagle Ltd
Central Services to the Public,Management & Support Services,Premises & Asset Management,Supplies & Services,"Equipment, Furniture & Materials",Purchase Materials (Job Cost),08/02/2024,505588,418.95,Rexel
Central Services to the Public,Management & Support Services,Premises & Asset Management,Supplies & Services,"Printing, Stationery & General Office Expenses",Stationery,08/02/2024,502549,365.87,Lyreco Uk Ltd
"Highways, Roads & Transport",Highways and roads - maintenance,Plan Pol & Transport,Supplies & Services,"Printing, Stationery & General Office Expenses",Stationery,08/02/2024,502549,26.57,Lyreco Uk Ltd
"Highways, Roads & Transport",Parking Services,Plan Pol & Transport,Supplies & Services,"Printing, Stationery & General Office Expenses",Stationery,08/02/2024,502549,21.26,Lyreco Uk Ltd
"Highways, Roads & Transport",Parking Services,Plan Pol & Transport,Supplies & Services,"Printing, Stationery & General Office Expenses",Stationery,08/02/2024,502549,5.31,Lyreco Uk Ltd
Environmental & Regulatory,Regulatory Services,Legal & Democratic,Supplies & Services,Services,Training Courses,29/02/2024,506536,420,Button Training Limited
Environmental & Regulatory,Waste management,Environmental,Transport Related Expenditure,Direct Transport Costs,Repair Materials,29/02/2024,506266,420.89,Dennis Eagle Ltd
Environmental & Regulatory,Street Cleansing (not chargeable to Highways),Environmental,Supplies & Services,"Equipment, Furniture & Materials",Purchase Equip + Materials,29/02/2024,506169,422.48,Glasdon Uk Ltd
Cultural & Related,Recreation & Sport,Community and Leisure ,Supplies & Services,"Equipment, Furniture & Materials",Purchase Equip + Materials,29/02/2024,504156,423.54,J P Lennard Ltd
Cultural & Related,Open Spaces,Community and Leisure ,Premises related Expenditure,Energy Costs,Electricity,29/02/2024,506629,425.4,Npower
External Trading Accounts,Business Parks,Premises & Asset Management,Premises related Expenditure,Energy Costs,Gas,15/02/2024,506015,427.79,Totalenergies Gas & Power Ltd
Environmental & Regulatory,Regulatory Services,Housing and Environmental Health ,Supplies & Services,Services,Professional Fees,15/02/2024,505436,430.86,The Big Word Group
Cultural & Related,Recreation & Sport,Community and Leisure ,Premises related Expenditure,Energy Costs,Gas,15/02/2024,506092,432.91,Totalenergies Gas & Power Ltd
Cultural & Related,Culture & Heritage,Community and Leisure ,Supplies & Services,Miscellaneous Expenses,Booking Of Acts,15/02/2024,505989,525,Brick Ideas
Central Services to the Public,Management & Support Services,Premises & Asset Management,Premises related Expenditure,Water Services,Water And Sewerage Charges,15/02/2024,505178,525.58,Castle Water Limited
Cultural & Related,Open Spaces,Environmental,Supplies & Services,"Equipment, Furniture & Materials",Purchase Equip + Materials,22/02/2024,505259,440,Andover Turf Company
Environmental & Regulatory,Waste management,Environmental,Employees,Indirect Employee Expenses,Agency Staff - Waged Posts,15/02/2024,504835,442.58,24-7 Staffing
Cultural & Related,Recreation & Sport,Community and Leisure ,Premises related Expenditure,Energy Costs,Gas,22/02/2024,506132,444.85,Totalenergies Gas & Power Ltd
Environmental & Regulatory,Waste & Recycling Management,Environmental,Transport Related Expenditure,Direct Transport Costs,External Garages,29/02/2024,506283,448.44,South East Cranes Ltd
Central Services to the Public,Management & Support Services,Premises & Asset Management,Employees,Indirect Employee Expenses,Staff Professional Fees,08/02/2024,505553,539,Personal Data - Data Protection Act 1998
Central Services to the Public,Management & Support Services,Premises & Asset Management,Employees,Indirect Employee Expenses,Staff Professional Fees,08/02/2024,505567,539,Personal Data - Data Protection Act 1998
Central Services to the Public,Management & Support Services,Environmental,Supplies & Services,"Printing, Stationery & General Office Expenses",Stationery,08/02/2024,505224,449.43,Lyreco Uk Ltd
Cultural & Related,Open Spaces,Community and Leisure ,Premises related Expenditure,Repairs Alterations & Maintenance of Buildings,Estates premises costs - AMP,29/02/2024,504150,450,Gifford Tree Service
Cultural & Related,Culture & Heritage,Community and Leisure ,Supplies & Services,Miscellaneous Expenses,Promotions / Special Events,01/02/2024,504134,450,Hampshire Media Limited
Central Services to the Public,Management & Support Services,Environmental,Supplies & Services,Services,Training Courses,29/02/2024,506813,450,Event-X Ltd
Environmental & Regulatory,Street Cleansing (not chargeable to Highways),Environmental,Supplies & Services,Services,Training Courses,15/02/2024,504011,540,Sparsholt College Hampshire
Environmental & Regulatory,Street Cleansing (not chargeable to Highways),Environmental,Supplies & Services,Services,Training Courses,15/02/2024,504012,540,Sparsholt College Hampshire
Environmental & Regulatory,Street Cleansing (not chargeable to Highways),Environmental,Supplies & Services,Services,Training Courses,15/02/2024,504013,540,Sparsholt College Hampshire
Central Services to the Public,Management & Support Services,Premises & Asset Management,Supplies & Services,Services,Training Courses,01/02/2024,504745,450,Project Skills Solutions Ltd
Environmental & Regulatory,Regulatory Services,Housing and Environmental Health ,Supplies & Services,Services,Project Consultancy - Policy,22/02/2024,505966,455,Als Laboratories (Uk) Limited
Central Services to the Public,Management & Support Services,IT,Supplies & Services,Communications & Computing,Communication Links,15/02/2024,505600,455,Cloud Gateway Limited
Cultural & Related,Recreation & Sport,Community and Leisure ,Premises related Expenditure,Repairs Alterations & Maintenance of Buildings,Planned Maintenance - Non Est,15/02/2024,506177,455,Culligan (Uk) Ltd
Central Services,Corporate & Democratic Core,Corporate & Democratic,Supplies & Services,Catering,Catering,15/02/2024,505607,550,Kyte Catering
External Trading Accounts,Business Parks,Premises & Asset Management,Premises related Expenditure,Energy Costs,Electricity,01/02/2024,503506,462.44,Npower
Cultural & Related,Culture & Heritage,Premises & Asset Management,Premises related Expenditure,Repairs Alterations & Maintenance of Buildings,Planned Maintenance - Non Est,08/02/2024,504887,464,Cp Fire Consultants Ltd
Cultural & Related,Culture & Heritage,Premises & Asset Management,Premises related Expenditure,Repairs Alterations & Maintenance of Buildings,Planned Maintenance - Non Est,22/02/2024,506679,464.53,Roundstone Catering Equipment
Environmental & Regulatory,Waste & Recycling Management,Environmental,Supplies & Services,"Equipment, Furniture & Materials",Purchase Equip + Materials,29/02/2024,502800,465,Smart Streets
External Trading Accounts,Business Parks,Premises & Asset Management,Supplies & Services,"Equipment, Furniture & Materials",Purchase Equip + Materials,15/02/2024,504775,465,Personal Data - Data Protection Act 1998
Central Services to the Public,Management & Support Services,Premises & Asset Management,Third Party Payments,Other Establishments,Private Contractors,22/02/2024,506808,465.35,Andover Glass Works Ltd
Central Services to the Public,Management & Support Services,Premises & Asset Management,Third Party Payments,Other Establishments,Private Contractors,29/02/2024,507631,465.35,Andover Glass Works Ltd
Environmental & Regulatory,Regulatory Services,Premises & Asset Management,Premises related Expenditure,Energy Costs,Electricity,01/02/2024,501594,469.32,Npower
Central Services,Corporate & Democratic Core,Corporate & Democratic,Supplies & Services,"Equipment, Furniture & Materials",IT Supp and Serv AMP,29/02/2024,491173,469.43,Advanced Business Software And Solutions Ltd
Environmental & Regulatory,Regulatory Services,Premises & Asset Management,Premises related Expenditure,Energy Costs,Electricity,08/02/2024,503561,470.26,Npower
Planning & Development,Community Development,Community and Leisure ,Supplies & Services,Grants & Subscriptions,Grants,22/02/2024,506929,566,Braishfield Village Association
Cultural & Related,Recreation & Sport,Community and Leisure ,Premises related Expenditure,Water Services,Water And Sewerage Charges,15/02/2024,505512,568.94,Castle Water Limited
Central Services to the Public,Management & Support Services,Chief Executive's,Supplies & Services,Services,Training Courses,15/02/2024,505482,475,Emarketeers Ltd
Cultural & Related,Culture & Heritage,Premises & Asset Management,Premises related Expenditure,Energy Costs,Electricity,08/02/2024,503574,475.55,Npower
Central Services to the Public,Management & Support Services,Environmental,Transport Related Expenditure,Direct Transport Costs,Repair Materials,22/02/2024,506140,477,Wessex Truck And Trailer Supplies Limited
Central Services to the Public,Management & Support Services,Premises & Asset Management,Supplies & Services,Miscellaneous Expenses,Medical Fees,08/02/2024,505577,17,Cordell Health Ltd
Housing Services,Homelessness,Housing and Environmental Health ,Supplies & Services,Miscellaneous Expenses,Medical Fees,08/02/2024,505577,17,Cordell Health Ltd
Cultural & Related,Recreation & Sport,Community and Leisure ,Supplies & Services,Miscellaneous Expenses,Medical Fees,08/02/2024,505577,17,Cordell Health Ltd
Cultural & Related,Culture & Heritage,Community and Leisure ,Supplies & Services,Miscellaneous Expenses,Medical Fees,08/02/2024,505577,220,Cordell Health Ltd
Central Services to the Public,Management & Support Services,Chief Executive's,Supplies & Services,Miscellaneous Expenses,Medical Fees,08/02/2024,505577,34,Cordell Health Ltd
Planning & Development,Planning Policy,Plan Pol & Transport,Supplies & Services,Miscellaneous Expenses,Medical Fees,08/02/2024,505577,17,Cordell Health Ltd
"Highways, Roads & Transport",Parking Services,Plan Pol & Transport,Supplies & Services,Miscellaneous Expenses,Medical Fees,08/02/2024,505577,17,Cordell Health Ltd
Environmental & Regulatory,Waste & Recycling Management,Environmental,Supplies & Services,Miscellaneous Expenses,Medical Fees,08/02/2024,505577,17,Cordell Health Ltd
Environmental & Regulatory,Street Cleansing (not chargeable to Highways),Environmental,Supplies & Services,Miscellaneous Expenses,Medical Fees,08/02/2024,505577,220,Cordell Health Ltd
Cultural & Related,Open Spaces,Community and Leisure ,Supplies & Services,"Equipment, Furniture & Materials",Purchase Equip + Materials,22/02/2024,506655,402.8,Tudor Environmental
Cultural & Related,Open Spaces,Community and Leisure ,Supplies & Services,"Equipment, Furniture & Materials",Purchase Equip + Materials,22/02/2024,506655,77.8,Tudor Environmental
Environmental & Regulatory,Regulatory Services,Housing and Environmental Health ,Supplies & Services,Grants and subscriptions,Capital Grants,29/02/2024,507687,578.28,Bjc Design
External Trading Accounts,Business Parks,Premises & Asset Management,Premises related Expenditure,Energy Costs,Electricity,15/02/2024,504743,559.06,Opus Energy Ltd
Housing Services,Housing Benefits ,Revenues,Employees,Indirect Employee Expenses,Temporary Staff,22/02/2024,503392,499.95,Venn Group Limited
Central Services to the Public,Management & Support Services,Premises & Asset Management,Supplies & Services,Services,Professional Advice,22/02/2024,504901,500,Community
Planning & Development,Economic Development,Planning Policy & Economic Development ,Supplies & Services,Grants & Subscriptions,Grants,22/02/2024,506821,600,Gloss Beauty Andover Ltd
External Trading Accounts,Business Parks,Premises & Asset Management,Premises related Expenditure,Energy Costs,Gas,15/02/2024,506084,503.26,Totalenergies Gas & Power Ltd
Cultural & Related,Recreation & Sport,Community and Leisure ,Premises related Expenditure,Energy Costs,Electricity,08/02/2024,503611,503.81,Npower
"Highways, Roads & Transport",Parking Services,Plan Pol & Transport,Premises related Expenditure,Energy Costs,Electricity,29/02/2024,506628,506.12,Npower
Central Services to the Public,Management & Support Services,Premises & Asset Management,Third Party Payments,Other Establishments,Private Contractors,01/02/2024,504301,506.3,Corrigenda Ltd
Cultural & Related,Recreation & Sport,Community and Leisure ,Premises related Expenditure,Energy Costs,Gas,22/02/2024,506133,507.12,Totalenergies Gas & Power Ltd
Central Services,Corporate & Democratic Core,Corporate & Democratic,Supplies & Services,"Clothes, Uniforms & Laundry",Clothing + Uniforms,08/02/2024,505268,507.5,Michaels Civic Robes
Central Services to the Public,Management & Support Services,Environmental,Transport Related Expenditure,Direct Transport Costs,Repair Materials,29/02/2024,506515,508.14,Dennis Eagle Ltd
"Highways, Roads & Transport",Parking Services,Plan Pol & Transport,Premises related Expenditure,Energy Costs,Electricity,15/02/2024,503609,511.1,Npower
External Trading Accounts,Property Investments,Premises & Asset Management,Premises related Expenditure,Grounds Maintenance Costs,Grounds Maintenance Contracts,29/02/2024,507638,511.75,Landmarks Sustainability Ltd
Housing Services,Housing Benefits ,Revenues,Supplies & Services,Grants & Subscriptions,Subscriptions,08/02/2024,505481,520,Hbinfo Ltd
Cultural & Related,Culture & Heritage,Community and Leisure ,Premises related Expenditure,Repairs Alterations & Maintenance of Buildings,General Repairs,01/02/2024,503884,522.18,Proton (Southern) Ltd
Cultural & Related,Culture & Heritage,Premises & Asset Management,Premises related Expenditure,Energy Costs,Gas,15/02/2024,506002,523.51,Totalenergies Gas & Power Ltd
Cultural & Related,Recreation & Sport,Community and Leisure ,Premises related Expenditure,Energy Costs,Gas,01/02/2024,504617,598.99,British Gas Business 
Central Services to the Public,Management & Support Services,Premises & Asset Management,Supplies & Services,"Equipment, Furniture & Materials",Equipment Hire,22/02/2024,506162,526.1,Edwards And Ward Ltd
"Highways, Roads & Transport",Public Transport,Plan Pol & Transport,Third Party Payments,Transport Operators in Respect of Concessionary Fares,Voluntary Orgs Reimbursement,01/02/2024,504868,634,Thorngate Village Care Group
Cultural & Related,Tourism,Planning Policy & Economic Development ,Premises related Expenditure,Energy Costs,Electricity,22/02/2024,506640,532.99,Npower
Central Services to the Public,Management & Support Services,Premises & Asset Management,Third Party Payments,Other Establishments,Private Contractors,01/02/2024,504770,640,Personal Data - Data Protection Act 1998
Cultural & Related,Recreation & Sport,Community and Leisure ,Premises related Expenditure,Energy Costs,Electricity,29/02/2024,506632,543.77,Npower
Cultural & Related,Open Spaces,Environmental,Transport Related Expenditure,Direct Transport Costs,Repair Materials,29/02/2024,506284,137.5,Adams Morey Ltd
Environmental & Regulatory,Waste & Recycling Management,Environmental,Transport Related Expenditure,Direct Transport Costs,Repair Materials,29/02/2024,506284,137.5,Adams Morey Ltd
Environmental & Regulatory,Street Cleansing (not chargeable to Highways),Environmental,Transport Related Expenditure,Direct Transport Costs,Repair Materials,29/02/2024,506284,137.5,Adams Morey Ltd
Environmental & Regulatory,Waste management,Environmental,Transport Related Expenditure,Direct Transport Costs,Repair Materials,29/02/2024,506284,137.5,Adams Morey Ltd
Environmental & Regulatory,Street Cleansing (not chargeable to Highways),Environmental,Transport Related Expenditure,Direct Transport Costs,Repair Materials,08/02/2024,504584,555,Adams Morey Ltd
Central Services to the Public,Management & Support Services,Premises & Asset Management,Third Party Payments,Other Establishments,Private Contractors,01/02/2024,504768,675,Personal Data - Data Protection Act 1998
Environmental & Regulatory,Waste management,Environmental,Transport Related Expenditure,Direct Transport Costs,Repair Materials,01/02/2024,504871,680,Passenger Lift Solutions Limited
Central Services to the Public,Management & Support Services,Finance,Supplies & Services,"Printing, Stationery & General Office Expenses",Postage Costs,22/02/2024,506168,568.76,Whistl
Central Services to the Public,Local Tax Collection,Revenues,Supplies & Services,Services,Professional Fees,08/02/2024,504796,107.34,Ross & Roberts
Central Services to the Public,Management & Support Services,Environmental,Supplies & Services,"Clothes, Uniforms & Laundry",Clothing + Uniforms,08/02/2024,504292,422.19,Smi Group
Central Services to the Public,Management & Support Services,Environmental,Supplies & Services,Miscellaneous Expenses,Health And Safety,08/02/2024,504292,150.62,Smi Group
Environmental & Regulatory,Waste management,Environmental,Transport Related Expenditure,Direct Transport Costs,Repair Materials,08/02/2024,504573,576.28,Mitchell Diesel Limited
Central Services to the Public,Management & Support Services,Premises & Asset Management,Supplies & Services,Miscellaneous Expenses,Medical Fees,15/02/2024,506199,440,Cordell Health Ltd
Central Services to the Public,Management & Support Services,Finance,Supplies & Services,Miscellaneous Expenses,Medical Fees,15/02/2024,506199,17,Cordell Health Ltd
Cultural & Related,Culture & Heritage,Community and Leisure ,Supplies & Services,Miscellaneous Expenses,Medical Fees,15/02/2024,506199,100,Cordell Health Ltd
"Highways, Roads & Transport",Parking Services,Plan Pol & Transport,Supplies & Services,Miscellaneous Expenses,Medical Fees,15/02/2024,506199,17,Cordell Health Ltd
Environmental & Regulatory,Street Cleansing (not chargeable to Highways),Environmental,Supplies & Services,Miscellaneous Expenses,Medical Fees,15/02/2024,506199,17,Cordell Health Ltd
Environmental & Regulatory,Waste management,Environmental,Supplies & Services,Miscellaneous Expenses,Medical Fees,15/02/2024,506199,17,Cordell Health Ltd
Central Services to the Public,Management & Support Services,Premises & Asset Management,Premises related Expenditure,Energy Costs,Gas,15/02/2024,506007,583.6,Totalenergies Gas & Power Ltd
Cultural & Related,Recreation & Sport,Community and Leisure ,Premises related Expenditure,Energy Costs,Electricity,01/02/2024,504618,588.27,British Gas Business
Cultural & Related,Recreation & Sport,Community and Leisure ,Premises related Expenditure,Energy Costs,Gas,15/02/2024,506001,588.79,Totalenergies Gas & Power Ltd
Cultural & Related,Culture & Heritage,Premises & Asset Management,Premises related Expenditure,Energy Costs,Gas,15/02/2024,506085,591.81,Totalenergies Gas & Power Ltd
External Trading Accounts,Economic Development,Premises & Asset Management,Premises related Expenditure,Energy Costs,Gas,08/02/2024,504824,595.15,Totalenergies Gas & Power Ltd
Environmental & Regulatory,Regulatory Services,Premises & Asset Management,Premises related Expenditure,Energy Costs,Electricity,08/02/2024,503527,597.69,Npower
Central Services to the Public,Management & Support Services,Premises & Asset Management,Third Party Payments,Other Establishments,Private Contractors,22/02/2024,505572,602.07,Andover Glass Works Ltd
External Trading Accounts,Business Parks,Premises & Asset Management,Premises related Expenditure,Energy Costs,Electricity,08/02/2024,501464,693.33,Opus Energy Ltd
Cultural & Related,Open Spaces,Environmental,Supplies & Services,"Equipment, Furniture & Materials",Purchase Equip + Materials,15/02/2024,503200,609,Natural Stone & Timber
Central Services to the Public,Management & Support Services,Premises & Asset Management,Premises related Expenditure,Energy Costs,Gas,15/02/2024,506097,610.13,Totalenergies Gas & Power Ltd
Environmental & Regulatory,Waste management,Environmental,Transport Related Expenditure,Direct Transport Costs,Repair Materials,08/02/2024,504592,612.3,Dennis Eagle Ltd
Cultural & Related,Culture & Heritage,Premises & Asset Management,Premises related Expenditure,Repairs Alterations & Maintenance of Buildings,Planned Maintenance - Non Est,22/02/2024,506551,1.22,Corrigenda Ltd
Cultural & Related,Culture & Heritage,Premises & Asset Management,Premises related Expenditure,Repairs Alterations & Maintenance of Buildings,Planned Maintenance - Non Est,22/02/2024,506552,1.22,Corrigenda Ltd
Cultural & Related,Culture & Heritage,Premises & Asset Management,Premises related Expenditure,Repairs Alterations & Maintenance of Buildings,Planned Maintenance - Non Est,22/02/2024,506553,1.22,Corrigenda Ltd
Cultural & Related,Culture & Heritage,Premises & Asset Management,Premises related Expenditure,Repairs Alterations & Maintenance of Buildings,Planned Maintenance - Non Est,22/02/2024,506555,1.22,Corrigenda Ltd
Central Services to the Public,Management & Support Services,Premises & Asset Management,Premises related Expenditure,Repairs Alterations & Maintenance of Buildings,Planned Maintenance - Non Est,22/02/2024,506551,20.4,Corrigenda Ltd
Central Services to the Public,Management & Support Services,Premises & Asset Management,Premises related Expenditure,Repairs Alterations & Maintenance of Buildings,Planned Maintenance - Non Est,22/02/2024,506552,20.4,Corrigenda Ltd
Central Services to the Public,Management & Support Services,Premises & Asset Management,Premises related Expenditure,Repairs Alterations & Maintenance of Buildings,Planned Maintenance - Non Est,22/02/2024,506553,20.4,Corrigenda Ltd
Central Services to the Public,Management & Support Services,Premises & Asset Management,Premises related Expenditure,Repairs Alterations & Maintenance of Buildings,Planned Maintenance - Non Est,22/02/2024,506555,20.4,Corrigenda Ltd
Central Services to the Public,Management & Support Services,Premises & Asset Management,Premises related Expenditure,Repairs Alterations & Maintenance of Buildings,Planned Maintenance - Non Est,22/02/2024,506551,2.39,Corrigenda Ltd
Central Services to the Public,Management & Support Services,Premises & Asset Management,Premises related Expenditure,Repairs Alterations & Maintenance of Buildings,Planned Maintenance - Non Est,22/02/2024,506552,2.39,Corrigenda Ltd
Central Services to the Public,Management & Support Services,Premises & Asset Management,Premises related Expenditure,Repairs Alterations & Maintenance of Buildings,Planned Maintenance - Non Est,22/02/2024,506553,2.39,Corrigenda Ltd
Central Services to the Public,Management & Support Services,Premises & Asset Management,Premises related Expenditure,Repairs Alterations & Maintenance of Buildings,Planned Maintenance - Non Est,22/02/2024,506555,2.39,Corrigenda Ltd
Central Services to the Public,Management & Support Services,Premises & Asset Management,Premises related Expenditure,Repairs Alterations & Maintenance of Buildings,Planned Maintenance - Non Est,22/02/2024,506551,4.78,Corrigenda Ltd
Central Services to the Public,Management & Support Services,Premises & Asset Management,Premises related Expenditure,Repairs Alterations & Maintenance of Buildings,Planned Maintenance - Non Est,22/02/2024,506552,4.78,Corrigenda Ltd
Central Services to the Public,Management & Support Services,Premises & Asset Management,Premises related Expenditure,Repairs Alterations & Maintenance of Buildings,Planned Maintenance - Non Est,22/02/2024,506553,4.78,Corrigenda Ltd
Central Services to the Public,Management & Support Services,Premises & Asset Management,Premises related Expenditure,Repairs Alterations & Maintenance of Buildings,Planned Maintenance - Non Est,22/02/2024,506555,4.78,Corrigenda Ltd
Cultural & Related,Recreation & Sport,Community and Leisure ,Premises related Expenditure,Repairs Alterations & Maintenance of Buildings,Planned Maintenance - Non Est,22/02/2024,506551,42.02,Corrigenda Ltd
Cultural & Related,Recreation & Sport,Community and Leisure ,Premises related Expenditure,Repairs Alterations & Maintenance of Buildings,Planned Maintenance - Non Est,22/02/2024,506552,42.02,Corrigenda Ltd
Cultural & Related,Recreation & Sport,Community and Leisure ,Premises related Expenditure,Repairs Alterations & Maintenance of Buildings,Planned Maintenance - Non Est,22/02/2024,506553,42.02,Corrigenda Ltd
Cultural & Related,Recreation & Sport,Community and Leisure ,Premises related Expenditure,Repairs Alterations & Maintenance of Buildings,Planned Maintenance - Non Est,22/02/2024,506555,42.02,Corrigenda Ltd
Cultural & Related,Recreation & Sport,Community and Leisure ,Premises related Expenditure,Repairs Alterations & Maintenance of Buildings,Planned Maintenance - Non Est,22/02/2024,506551,104.49,Corrigenda Ltd
Cultural & Related,Recreation & Sport,Community and Leisure ,Premises related Expenditure,Repairs Alterations & Maintenance of Buildings,Planned Maintenance - Non Est,22/02/2024,506552,104.49,Corrigenda Ltd
Cultural & Related,Recreation & Sport,Community and Leisure ,Premises related Expenditure,Repairs Alterations & Maintenance of Buildings,Planned Maintenance - Non Est,22/02/2024,506553,104.49,Corrigenda Ltd
Cultural & Related,Recreation & Sport,Community and Leisure ,Premises related Expenditure,Repairs Alterations & Maintenance of Buildings,Planned Maintenance - Non Est,22/02/2024,506555,104.49,Corrigenda Ltd
Cultural & Related,Recreation & Sport,Community and Leisure ,Premises related Expenditure,Repairs Alterations & Maintenance of Buildings,Planned Maintenance - Non Est,22/02/2024,506551,42.02,Corrigenda Ltd
Cultural & Related,Recreation & Sport,Community and Leisure ,Premises related Expenditure,Repairs Alterations & Maintenance of Buildings,Planned Maintenance - Non Est,22/02/2024,506552,42.02,Corrigenda Ltd
Cultural & Related,Recreation & Sport,Community and Leisure ,Premises related Expenditure,Repairs Alterations & Maintenance of Buildings,Planned Maintenance - Non Est,22/02/2024,506553,42.02,Corrigenda Ltd
Cultural & Related,Recreation & Sport,Community and Leisure ,Premises related Expenditure,Repairs Alterations & Maintenance of Buildings,Planned Maintenance - Non Est,22/02/2024,506555,42.02,Corrigenda Ltd
Cultural & Related,Recreation & Sport,Community and Leisure ,Premises related Expenditure,Repairs Alterations & Maintenance of Buildings,Planned Maintenance - Non Est,22/02/2024,506551,67.25,Corrigenda Ltd
Cultural & Related,Recreation & Sport,Community and Leisure ,Premises related Expenditure,Repairs Alterations & Maintenance of Buildings,Planned Maintenance - Non Est,22/02/2024,506552,67.25,Corrigenda Ltd
Cultural & Related,Recreation & Sport,Community and Leisure ,Premises related Expenditure,Repairs Alterations & Maintenance of Buildings,Planned Maintenance - Non Est,22/02/2024,506553,67.25,Corrigenda Ltd
Cultural & Related,Recreation & Sport,Community and Leisure ,Premises related Expenditure,Repairs Alterations & Maintenance of Buildings,Planned Maintenance - Non Est,22/02/2024,506555,67.25,Corrigenda Ltd
Cultural & Related,Recreation & Sport,Community and Leisure ,Premises related Expenditure,Repairs Alterations & Maintenance of Buildings,Planned Maintenance - Non Est,22/02/2024,506551,27.62,Corrigenda Ltd
Cultural & Related,Recreation & Sport,Community and Leisure ,Premises related Expenditure,Repairs Alterations & Maintenance of Buildings,Planned Maintenance - Non Est,22/02/2024,506552,27.62,Corrigenda Ltd
Cultural & Related,Recreation & Sport,Community and Leisure ,Premises related Expenditure,Repairs Alterations & Maintenance of Buildings,Planned Maintenance - Non Est,22/02/2024,506553,27.62,Corrigenda Ltd
Cultural & Related,Recreation & Sport,Community and Leisure ,Premises related Expenditure,Repairs Alterations & Maintenance of Buildings,Planned Maintenance - Non Est,22/02/2024,506555,27.62,Corrigenda Ltd
Cultural & Related,Recreation & Sport,Community and Leisure ,Premises related Expenditure,Repairs Alterations & Maintenance of Buildings,Planned Maintenance - Non Est,22/02/2024,506551,169.35,Corrigenda Ltd
Cultural & Related,Recreation & Sport,Community and Leisure ,Premises related Expenditure,Repairs Alterations & Maintenance of Buildings,Planned Maintenance - Non Est,22/02/2024,506552,169.35,Corrigenda Ltd
Cultural & Related,Recreation & Sport,Community and Leisure ,Premises related Expenditure,Repairs Alterations & Maintenance of Buildings,Planned Maintenance - Non Est,22/02/2024,506553,169.35,Corrigenda Ltd
Cultural & Related,Recreation & Sport,Community and Leisure ,Premises related Expenditure,Repairs Alterations & Maintenance of Buildings,Planned Maintenance - Non Est,22/02/2024,506555,169.35,Corrigenda Ltd
Cultural & Related,Recreation & Sport,Community and Leisure ,Premises related Expenditure,Repairs Alterations & Maintenance of Buildings,Planned Maintenance - Non Est,22/02/2024,506551,129.72,Corrigenda Ltd
Cultural & Related,Recreation & Sport,Community and Leisure ,Premises related Expenditure,Repairs Alterations & Maintenance of Buildings,Planned Maintenance - Non Est,22/02/2024,506552,129.72,Corrigenda Ltd
Cultural & Related,Recreation & Sport,Community and Leisure ,Premises related Expenditure,Repairs Alterations & Maintenance of Buildings,Planned Maintenance - Non Est,22/02/2024,506553,129.72,Corrigenda Ltd
Cultural & Related,Recreation & Sport,Community and Leisure ,Premises related Expenditure,Repairs Alterations & Maintenance of Buildings,Planned Maintenance - Non Est,22/02/2024,506555,129.72,Corrigenda Ltd
Cultural & Related,Culture & Heritage,Community and Leisure ,Premises related Expenditure,Repairs Alterations & Maintenance of Buildings,Planned Maintenance - Non Est,22/02/2024,506551,1.22,Corrigenda Ltd
Cultural & Related,Culture & Heritage,Community and Leisure ,Premises related Expenditure,Repairs Alterations & Maintenance of Buildings,Planned Maintenance - Non Est,22/02/2024,506552,1.22,Corrigenda Ltd
Cultural & Related,Culture & Heritage,Community and Leisure ,Premises related Expenditure,Repairs Alterations & Maintenance of Buildings,Planned Maintenance - Non Est,22/02/2024,506553,1.22,Corrigenda Ltd
Cultural & Related,Culture & Heritage,Community and Leisure ,Premises related Expenditure,Repairs Alterations & Maintenance of Buildings,Planned Maintenance - Non Est,22/02/2024,506555,1.22,Corrigenda Ltd
External Trading Accounts,Property Investments,Premises & Asset Management,Premises related Expenditure,Repairs Alterations & Maintenance of Buildings,Salt & Gritting,15/02/2024,506254,612.5,Outco Ltd
Central Services to the Public,Management & Support Services,Legal & Democratic,Supplies & Services,"Printing, Stationery & General Office Expenses",Stationery,22/02/2024,505225,280.29,Lyreco Uk Ltd
Environmental & Regulatory,Regulatory Services,Legal & Democratic,Supplies & Services,"Printing, Stationery & General Office Expenses",Stationery,22/02/2024,505225,52,Lyreco Uk Ltd
Central Services,Corporate & Democratic Core,Corporate & Democratic,Supplies & Services,"Printing, Stationery & General Office Expenses",Stationery,22/02/2024,505225,37.63,Lyreco Uk Ltd
Central Services,Corporate & Democratic Core,Corporate & Democratic,Supplies & Services,"Equipment, Furniture & Materials",Purchase Equip + Materials,22/02/2024,505225,137.5,Lyreco Uk Ltd
Central Services to the Public,Emergency Planning,Corporate & Democratic,Supplies & Services,"Printing, Stationery & General Office Expenses",Stationery,22/02/2024,505225,112.34,Lyreco Uk Ltd
Central Services to the Public,Management & Support Services,Premises & Asset Management,Premises related Expenditure,Energy Costs,Gas,15/02/2024,506014,614.17,Totalenergies Gas & Power Ltd
Cultural & Related,Recreation & Sport,Community and Leisure ,Premises related Expenditure,Repairs Alterations & Maintenance of Buildings,Estates premises costs - AMP,08/02/2024,505267,737.5,Personal Data - Data Protection Act 1998
Environmental & Regulatory,Street Cleansing (not chargeable to Highways),Environmental,Employees,Indirect Employee Expenses,Agency Staff - Waged Posts,01/02/2024,504564,262.72,24-7 Staffing
Environmental & Regulatory,Waste management,Environmental,Employees,Indirect Employee Expenses,Agency Staff - Waged Posts,01/02/2024,504564,353.03,24-7 Staffing
External Trading Accounts,Business Parks,Premises & Asset Management,Premises related Expenditure,Energy Costs,Electricity,29/02/2024,506906,623.75,Npower
Planning & Development,Development Control,Planning & Building,Supplies & Services,Services,Professional Fees,15/02/2024,506000,625,12 College Place
Cultural & Related,Culture & Heritage,Community and Leisure ,Supplies & Services,Miscellaneous Expenses,Booking Of Acts,22/02/2024,506826,750,Theatre Fideri Fidera
External Trading Accounts,Business Parks,Premises & Asset Management,Premises related Expenditure,Repairs Alterations & Maintenance of Buildings,Estates premises costs - AMP,01/02/2024,504195,630.76,City Electrical Factors Ltd
Central Services to the Public,Management & Support Services,Environmental,Supplies & Services,"Clothes, Uniforms & Laundry",Clothing + Uniforms,29/02/2024,504578,603,Evolve Corporate Ltd
Central Services to the Public,Management & Support Services,Environmental,Supplies & Services,Miscellaneous Expenses,Health And Safety,29/02/2024,504578,31.6,Evolve Corporate Ltd
Environmental & Regulatory,Waste & Recycling Management,Environmental,Transport Related Expenditure,Direct Transport Costs,Repair Materials,01/02/2024,503881,638.8,Palfinger Uk
"Highways, Roads & Transport",Highways and roads - maintenance,Plan Pol & Transport,Premises related Expenditure,Energy Costs,Electricity,01/02/2024,501584,640.49,Npower
Central Services to the Public,Elections,Legal & Democratic,Supplies & Services,"Equipment, Furniture & Materials",Purchase Equip + Materials,08/02/2024,505260,175.5,Shaw & Sons Ltd
Central Services to the Public,Elections,Legal & Democratic,Supplies & Services,"Printing, Stationery & General Office Expenses",Stationery,08/02/2024,505260,467,Shaw & Sons Ltd
Central Services to the Public,Management & Support Services,Premises & Asset Management,Premises related Expenditure,Energy Costs,Gas,15/02/2024,506013,644.07,Totalenergies Gas & Power Ltd
Cultural & Related,Recreation & Sport,Community and Leisure ,Premises related Expenditure,Energy Costs,Electricity,08/02/2024,503543,644.87,Npower
Cultural & Related,Recreation & Sport,Community and Leisure ,Premises related Expenditure,Energy Costs,Electricity,22/02/2024,506615,645.55,Npower
Cultural & Related,Culture & Heritage,Premises & Asset Management,Premises related Expenditure,Energy Costs,Electricity,08/02/2024,503519,645.62,Npower
Planning & Development,Development Control,Planning & Building,Employees,Indirect Employee Expenses,Temporary Staff,08/02/2024,505497,649.5,Hayden'S Arboricultural Consultants
Cultural & Related,Open Spaces,Community and Leisure ,Premises related Expenditure,Energy Costs,Electricity,01/02/2024,501585,652.58,Npower
Environmental & Regulatory,Regulatory Services,Premises & Asset Management,Premises related Expenditure,Water Services,Water And Sewerage Charges,15/02/2024,505544,784.9,Castle Water Limited
Cultural & Related,Open Spaces,Community and Leisure ,Premises related Expenditure,Energy Costs,Electricity,08/02/2024,503557,654.44,Npower
Central Services to the Public,Management & Support Services,Premises & Asset Management,Premises related Expenditure,Energy Costs,Gas,15/02/2024,506096,656.71,Totalenergies Gas & Power Ltd
Environmental & Regulatory,Waste management,Environmental,Transport Related Expenditure,Direct Transport Costs,Repair Materials,29/02/2024,506165,663.3,Dennis Eagle Ltd
Planning & Development,Economic Development,Planning Policy & Economic Development ,Supplies & Services,"Equipment, Furniture & Materials",Maintenance Of Tools,15/02/2024,505943,670,Healthmatic Limited
Cultural & Related,Culture & Heritage,Community and Leisure ,Supplies & Services,Miscellaneous Expenses,Health And Safety,01/02/2024,504766,670,Ace Liftaway
Cultural & Related,Culture & Heritage,Premises & Asset Management,Premises related Expenditure,Energy Costs,Electricity,08/02/2024,503601,670.42,Npower
Environmental & Regulatory,Street Cleansing (not chargeable to Highways),Environmental,Supplies & Services,"Equipment, Furniture & Materials",Purchase Equip + Materials,15/02/2024,503927,672,Sweeperhire
Central Services to the Public,Management & Support Services,Finance,Supplies & Services,"Printing, Stationery & General Office Expenses",Postage Costs,29/02/2024,507209,672.2,Pitney Bowes Finance Ltd
Cultural & Related,Culture & Heritage,Premises & Asset Management,Premises related Expenditure,Energy Costs,Electricity,29/02/2024,506635,673.38,Npower
Environmental & Regulatory,Waste management,Environmental,Employees,Indirect Employee Expenses,Agency Staff - Waged Posts,22/02/2024,504755,686.2,Aligra
Cultural & Related,Recreation & Sport,Community and Leisure ,Supplies & Services,"Equipment, Furniture & Materials",Purchase Equip + Materials,29/02/2024,505991,687.18,J P Lennard Ltd
Central Services to the Public,Management & Support Services,Finance,Supplies & Services,"Printing, Stationery & General Office Expenses",Postage Costs,15/02/2024,505467,689.55,Whistl
External Trading Accounts,Business Parks,Premises & Asset Management,Premises related Expenditure,Energy Costs,Gas,22/02/2024,506123,689.85,Totalenergies Gas & Power Ltd
Central Services to the Public,Management & Support Services,Finance,Supplies & Services,Grants & Subscriptions,Subscriptions,29/02/2024,506787,690,Creditsafe Business Solutions Ltd
Cultural & Related,Culture & Heritage,Premises & Asset Management,Premises related Expenditure,Energy Costs,Electricity,08/02/2024,503602,690.83,Npower
Environmental & Regulatory,Street Cleansing (not chargeable to Highways),Environmental,Supplies & Services,"Equipment, Furniture & Materials",Purchase Equip + Materials,29/02/2024,503997,694.44,Tudor Environmental
Environmental & Regulatory,Waste management,Environmental,Employees,Indirect Employee Expenses,Agency Staff - Waged Posts,29/02/2024,505603,695.6,Aligra
Cultural & Related,Recreation & Sport,Community and Leisure ,Premises related Expenditure,Energy Costs,Gas,15/02/2024,506020,698.41,Totalenergies Gas & Power Ltd
Housing Services,Homelessness,Housing and Environmental Health ,Supplies & Services,Grants & Subscriptions,Grants,29/02/2024,507669,838.24,Two Saints Housing Association Ltd
Cultural & Related,Open Spaces,Environmental,Supplies & Services,Miscellaneous Expenses,Waste Collection,22/02/2024,504912,703.64,Collard Enviromental Ltd
Environmental & Regulatory,Waste management,Environmental,Employees,Indirect Employee Expenses,Agency Staff - Waged Posts,29/02/2024,505604,568.7,Aligra
Environmental & Regulatory,Waste management,Environmental,Employees,Indirect Employee Expenses,Agency Staff - Waged Posts,29/02/2024,505604,141,Aligra
Cultural & Related,Culture & Heritage,Community and Leisure ,Supplies & Services,"Printing, Stationery & General Office Expenses",Licences / Affiliation Fees,29/02/2024,505610,709.74,Ppl Prs Ltd
Central Services to the Public,Management & Support Services,Finance,Supplies & Services,"Printing, Stationery & General Office Expenses",Postage Costs,01/02/2024,504149,714.36,Whistl
Environmental & Regulatory,Waste management,Environmental,Employees,Indirect Employee Expenses,Agency Staff - Waged Posts,01/02/2024,504317,723.8,Aligra
Central Services to the Public,Management & Support Services,Premises & Asset Management,Third Party Payments,Other Establishments,Private Contractors,15/02/2024,505623,725,Purbeck Civil Engineering Limited
Central Services to the Public,Management & Support Services,IT,Supplies & Services,"Equipment, Furniture & Materials",IT Supp and Serv AMP,29/02/2024,506173,726.9,Misco Technologies Ltd
Environmental & Regulatory,Street Cleansing (not chargeable to Highways),Environmental,Employees,Indirect Employee Expenses,Agency Staff - Waged Posts,15/02/2024,505596,727.79,24-7 Staffing
Cultural & Related,Culture & Heritage,Premises & Asset Management,Supplies & Services,Miscellaneous Expenses,Waste Collection,15/02/2024,506225,210.1,Suez Recycling And Recovery Uk Ltd
Central Services to the Public,Management & Support Services,Premises & Asset Management,Supplies & Services,Miscellaneous Expenses,Waste Collection,15/02/2024,506225,519.33,Suez Recycling And Recovery Uk Ltd
Environmental & Regulatory,Waste management,Environmental,Employees,Indirect Employee Expenses,Agency Staff - Waged Posts,15/02/2024,504834,730.69,24-7 Staffing
Planning & Development,Development Control,Planning & Building,Employees,Indirect Employee Expenses,Temporary Staff,08/02/2024,504609,736.1,Hayden'S Arboricultural Consultants
Central Services to the Public,Management & Support Services,Premises & Asset Management,Third Party Payments,Other Establishments,Private Contractors,22/02/2024,506776,885,Personal Data - Data Protection Act 1998
Environmental & Regulatory,Waste management,Environmental,Employees,Indirect Employee Expenses,Agency Staff - Waged Posts,15/02/2024,504820,737.9,Aligra
External Trading Accounts,Economic Development,Premises & Asset Management,Premises related Expenditure,Energy Costs,Gas,22/02/2024,506564,746.83,Totalenergies Gas & Power Ltd
Environmental & Regulatory,Regulatory Services,Housing and Environmental Health ,Supplies & Services,Grants and subscriptions,Capital Grants,29/02/2024,507676,896.8,Bjc Design
External Trading Accounts,Business Parks,Premises & Asset Management,Premises related Expenditure,Energy Costs,Electricity,01/02/2024,503515,749.6,Npower
Central Services to the Public,Management & Support Services,HR Services,Supplies & Services,Services,External Training Consultants,22/02/2024,505212,750,Dc Commercial Solicitors
Central Services,Corporate & Democratic Core,Corporate & Democratic,Supplies & Services,Services,Legal Fees,01/02/2024,504019,750,Radcliffe Chambers
Central Services to the Public,Management & Support Services,Premises & Asset Management,Third Party Payments,Other Establishments,Private Contractors,01/02/2024,504767,900,C A M Carpentry
Central Services to the Public,Management & Support Services,Premises & Asset Management,Third Party Payments,Other Establishments,Private Contractors,15/02/2024,505998,900,Personal Data - Data Protection Act 1998
Central Services to the Public,Management & Support Services,Premises & Asset Management,Third Party Payments,Other Establishments,Private Contractors,29/02/2024,507625,900,Personal Data - Data Protection Act 1998
Environmental & Regulatory,Regulatory Services,Housing and Environmental Health ,Supplies & Services,Grants and subscriptions,Capital Grants,01/02/2024,504843,900.44,Bjc Design
Cultural & Related,Recreation & Sport,Community and Leisure ,Premises related Expenditure,Repairs Alterations & Maintenance of Buildings,Planned Maintenance - Non Est,22/02/2024,506557,752.04,Corrigenda Ltd
Central Services to the Public,Management & Support Services,Premises & Asset Management,Premises related Expenditure,Energy Costs,Gas,22/02/2024,506127,755.6,Totalenergies Gas & Power Ltd
Cultural & Related,Open Spaces,Environmental,Supplies & Services,"Equipment, Furniture & Materials",Purchase Equip + Materials,01/02/2024,503390,757.56,Groundsman Tools Ltd
Environmental & Regulatory,Regulatory Services,Premises & Asset Management,Premises related Expenditure,Energy Costs,Electricity,22/02/2024,506631,759.29,Npower
Cultural & Related,Culture & Heritage,Premises & Asset Management,Premises related Expenditure,Repairs Alterations & Maintenance of Buildings,Planned Maintenance - Non Est,22/02/2024,506838,760,A C Wallbridge & Co Ltd
Central Services to the Public,Management & Support Services,Premises & Asset Management,Supplies & Services,Communications & Computing,Telephone Tracking System,08/02/2024,504857,48,Teletrac Navman (Uk) Ltd
Environmental & Regulatory,Regulatory Services,Housing and Environmental Health ,Supplies & Services,Communications & Computing,Telephone Tracking System,08/02/2024,504857,6,Teletrac Navman (Uk) Ltd
Environmental & Regulatory,Regulatory Services,Housing and Environmental Health ,Supplies & Services,Communications & Computing,Telephone Tracking System,08/02/2024,504857,12,Teletrac Navman (Uk) Ltd
Cultural & Related,Open Spaces,Community and Leisure ,Supplies & Services,Communications & Computing,Telephone Tracking System,08/02/2024,504857,6,Teletrac Navman (Uk) Ltd
Cultural & Related,Open Spaces,Community and Leisure ,Supplies & Services,Communications & Computing,Telephone Tracking System,08/02/2024,504857,6,Teletrac Navman (Uk) Ltd
"Highways, Roads & Transport",Parking Services,Plan Pol & Transport,Supplies & Services,Communications & Computing,Telephone Tracking System,08/02/2024,504857,12,Teletrac Navman (Uk) Ltd
Cultural & Related,Open Spaces,Environmental,Supplies & Services,Communications & Computing,Telephone Tracking System,08/02/2024,504857,299.99,Teletrac Navman (Uk) Ltd
Environmental & Regulatory,Waste & Recycling Management,Environmental,Supplies & Services,Communications & Computing,Telephone Tracking System,08/02/2024,504857,36,Teletrac Navman (Uk) Ltd
Environmental & Regulatory,Street Cleansing (not chargeable to Highways),Environmental,Supplies & Services,Communications & Computing,Telephone Tracking System,08/02/2024,504857,174.7,Teletrac Navman (Uk) Ltd
Environmental & Regulatory,Waste management,Environmental,Supplies & Services,Communications & Computing,Telephone Tracking System,08/02/2024,504857,136.6,Teletrac Navman (Uk) Ltd
Environmental & Regulatory,Waste management,Environmental,Supplies & Services,Communications & Computing,Telephone Tracking System,08/02/2024,504857,12,Teletrac Navman (Uk) Ltd
Central Services to the Public,Management & Support Services,Environmental,Supplies & Services,Communications & Computing,Telephone Tracking System,08/02/2024,504857,18,Teletrac Navman (Uk) Ltd
Central Services to the Public,Management & Support Services,Finance,Supplies & Services,"Printing, Stationery & General Office Expenses",Postage Costs,08/02/2024,504747,769.76,Whistl
Central Services to the Public,Management & Support Services,Premises & Asset Management,Third Party Payments,Other Establishments,Private Contractors,15/02/2024,505996,925,Personal Data - Data Protection Act 1998
Central Services to the Public,Management & Support Services,Premises & Asset Management,Third Party Payments,Other Establishments,Private Contractors,22/02/2024,506918,925,Personal Data - Data Protection Act 1998
Central Services to the Public,Management & Support Services,Premises & Asset Management,Third Party Payments,Other Establishments,Private Contractors,29/02/2024,507628,925,Personal Data - Data Protection Act 1998
External Trading Accounts,Economic Development,Premises & Asset Management,Premises related Expenditure,Energy Costs,Gas,08/02/2024,504825,772.91,Totalenergies Gas & Power Ltd
Central Services to the Public,Management & Support Services,Premises & Asset Management,Third Party Payments,Other Establishments,Private Contractors,08/02/2024,505269,930,Personal Data - Data Protection Act 1998
Central Services to the Public,Management & Support Services,Premises & Asset Management,Premises related Expenditure,Energy Costs,Gas,22/02/2024,506131,775.67,Totalenergies Gas & Power Ltd
"Highways, Roads & Transport",Highways and roads - maintenance,Plan Pol & Transport,Premises related Expenditure,Energy Costs,Electricity,08/02/2024,503566,776.62,Npower
Central Services to the Public,Management & Support Services,Environmental,Transport Related Expenditure,Direct Transport Costs,Repair Materials,08/02/2024,504829,782.8,Wessex Truck And Trailer Supplies Limited
Central Services to the Public,Management & Support Services,Environmental,Transport Related Expenditure,Direct Transport Costs,Repair Materials,08/02/2024,505255,782.8,Wessex Truck And Trailer Supplies Limited
Housing Services,Homelessness,Housing and Environmental Health ,Supplies & Services,Grants & Subscriptions,Grants,08/02/2024,505575,947.43,Abri Group Limited
Central Services to the Public,Management & Support Services,Environmental,Transport Related Expenditure,Direct Transport Costs,Repair Materials,29/02/2024,506213,789.72,Wessex Truck And Trailer Supplies Limited
External Trading Accounts,Property Investments,Premises & Asset Management,Premises related Expenditure,Repairs Alterations & Maintenance of Buildings,Planned Maintenance - Non Est,15/02/2024,506175,795,Ul Vs Ltd
Environmental & Regulatory,Waste management,Environmental,Transport Related Expenditure,Direct Transport Costs,Repair Materials,15/02/2024,505493,797.48,Dennis Eagle Ltd
Planning & Development,Planning Policy,Plan Pol & Transport,Supplies & Services,Services,Project Consultancy - Policy,08/02/2024,504903,798.75,Ridge & Partners Llp
Central Services to the Public,Management & Support Services,Premises & Asset Management,Supplies & Services,Services,Legal Fees,29/02/2024,507671,800,Sharpe Pritchard Llp
Central Services to the Public,Management & Support Services,Premises & Asset Management,Supplies & Services,Services,Legal Fees,29/02/2024,507674,804,Sharpe Pritchard Llp
Environmental & Regulatory,Street Cleansing (not chargeable to Highways),Environmental,Supplies & Services,Miscellaneous Expenses,Hazardous / Fly Tipped Waste,29/02/2024,506654,805,Breeze Environmental Limited
Central Services to the Public,Management & Support Services,Legal & Democratic,Employees,Indirect Employee Expenses,Agency Staff - Waged Posts,08/02/2024,504756,810,Sellick Partnership Ltd
Cultural & Related,Recreation & Sport,Community and Leisure ,Premises related Expenditure,Energy Costs,Gas,22/02/2024,506122,824.76,Totalenergies Gas & Power Ltd
Planning & Development,Development Control,Planning & Building,Employees,Indirect Employee Expenses,Temporary Staff,15/02/2024,505605,825,Sarto Thomas Limited
Planning & Development,Development Control,Planning & Building,Employees,Indirect Employee Expenses,Temporary Staff,15/02/2024,505606,825,Sarto Thomas Limited
Planning & Development,Development Control,Planning & Building,Employees,Indirect Employee Expenses,Temporary Staff,22/02/2024,503429,825,Sarto Thomas Limited
Planning & Development,Development Control,Planning & Building,Employees,Indirect Employee Expenses,Temporary Staff,22/02/2024,503614,825,Sarto Thomas Limited
Planning & Development,Development Control,Planning & Building,Employees,Indirect Employee Expenses,Temporary Staff,22/02/2024,504151,825,Sarto Thomas Limited
Central Services to the Public,Elections,Legal & Democratic,Supplies & Services,Miscellaneous Expenses,Advertising,08/02/2024,504615,826.98,Newsquest
External Trading Accounts,Business Parks,Premises & Asset Management,Premises related Expenditure,Energy Costs,Gas,22/02/2024,506523,833.24,Totalenergies Gas & Power Ltd
Housing Services,Homelessness,Housing and Environmental Health ,Supplies & Services,Grants & Subscriptions,Grants,08/02/2024,505570,1000,Aster Group
Housing Services,Homelessness,Housing and Environmental Health ,Supplies & Services,Grants & Subscriptions,Grants,08/02/2024,505619,1000,Two Saints Housing Association Ltd
Planning & Development,Planning Policy,Plan Pol & Transport,Supplies & Services,Grants & Subscriptions,Grants,15/02/2024,506185,1000,Braishfield Parish Council
Central Services to the Public,Management & Support Services,Premises & Asset Management,Premises related Expenditure,Repairs Alterations & Maintenance of Buildings,Estates premises costs - AMP,15/02/2024,505997,1000,Personal Data - Data Protection Act 1998
Central Services to the Public,Management & Support Services,Premises & Asset Management,Premises related Expenditure,Repairs Alterations & Maintenance of Buildings,Estates premises costs - AMP,22/02/2024,506775,1000,Personal Data - Data Protection Act 1998
Central Services to the Public,Management & Support Services,Premises & Asset Management,Premises related Expenditure,Repairs Alterations & Maintenance of Buildings,Estates premises costs - AMP,29/02/2024,507626,1000,Personal Data - Data Protection Act 1998
Cultural & Related,Recreation & Sport,Community and Leisure ,Premises related Expenditure,Repairs Alterations & Maintenance of Buildings,Estates premises costs - AMP,01/02/2024,504769,1000,Personal Data - Data Protection Act 1998
Cultural & Related,Recreation & Sport,Community and Leisure ,Premises related Expenditure,Repairs Alterations & Maintenance of Buildings,Estates premises costs - AMP,08/02/2024,505266,1000,Personal Data - Data Protection Act 1998
"Highways, Roads & Transport",Parking Services,Plan Pol & Transport,Supplies & Services,Miscellaneous Expenses,Security Services,01/02/2024,503335,838.5,Venture Security Management Ltd
Central Services to the Public,Management & Support Services,Environmental,Supplies & Services,"Equipment, Furniture & Materials",Purchase Equip + Materials,22/02/2024,506595,840,Castle Group Ltd
Cultural & Related,Culture & Heritage,Community and Leisure ,Supplies & Services,Services,Tutors,07/02/2024,504760,1010,Personal Data - Data Protection Act 1998
Central Services to the Public,Elections,Legal & Democratic,Supplies & Services,"Printing, Stationery & General Office Expenses",Postage Costs,22/02/2024,506542,844.44,Financial Data Management Plc
Planning & Development,Development Control,Planning & Building,Third Party Payments,Commuted Sum,s106 Developer contributions,29/02/2024,507683,1014,North Baddesley P C
Environmental & Regulatory,Street Cleansing (not chargeable to Highways),Environmental,Employees,Indirect Employee Expenses,Agency Staff - Waged Posts,15/02/2024,505597,369.45,24-7 Staffing
Environmental & Regulatory,Waste management,Environmental,Employees,Indirect Employee Expenses,Agency Staff - Waged Posts,15/02/2024,505597,476.18,24-7 Staffing
External Trading Accounts,Business Parks,Premises & Asset Management,Premises related Expenditure,Energy Costs,Electricity,08/02/2024,503542,850.83,Npower
Environmental & Regulatory,Street Cleansing (not chargeable to Highways),Environmental,Supplies & Services,"Equipment, Furniture & Materials",Purchase Equip + Materials,01/02/2024,501401,854.5,Sweeperhire
Environmental & Regulatory,Street Cleansing (not chargeable to Highways),Environmental,Supplies & Services,Miscellaneous Expenses,Hazardous / Fly Tipped Waste,01/02/2024,503365,855,Breeze Environmental Limited
Central Services to the Public,Management & Support Services,Environmental,Supplies & Services,"Clothes, Uniforms & Laundry",Clothing + Uniforms,15/02/2024,502194,828.5,Evolve Corporate Ltd
Central Services to the Public,Management & Support Services,Environmental,Supplies & Services,Miscellaneous Expenses,Health And Safety,15/02/2024,502194,31.6,Evolve Corporate Ltd
"Highways, Roads & Transport",Highways and roads - maintenance,Plan Pol & Transport,Premises related Expenditure,Energy Costs,Electricity,22/02/2024,506611,860.36,Npower
Central Services to the Public,Management & Support Services,Premises & Asset Management,Supplies & Services,"Equipment, Furniture & Materials",Equipment Hire,01/02/2024,504283,862.5,Crown Water & Coffee
Cultural & Related,Recreation & Sport,Community and Leisure ,Premises related Expenditure,Water Services,Water And Sewerage Charges,15/02/2024,505179,1036.5,Castle Water Limited
"Highways, Roads & Transport",Parking Services,Plan Pol & Transport,Supplies & Services,Miscellaneous Expenses,Security Services,01/02/2024,503336,866.45,Venture Security Management Ltd
"Highways, Roads & Transport",Parking Services,Plan Pol & Transport,Supplies & Services,Miscellaneous Expenses,Security Services,29/02/2024,505480,866.45,Venture Security Management Ltd
Environmental & Regulatory,Waste management,Environmental,Supplies & Services,"Equipment, Furniture & Materials",Purchase Equip + Materials,15/02/2024,503209,868.7,Vernacare
External Trading Accounts,Business Parks,Premises & Asset Management,Premises related Expenditure,Energy Costs,Electricity,01/02/2024,503976,871.51,Totalenergies Gas & Power Ltd
External Trading Accounts,Business Parks,Premises & Asset Management,Supplies & Services,Miscellaneous Expenses,Waste Collection,15/02/2024,505929,875.64,Basingstoke Skip Hire & Sthrn Waste Mgt Ltd
Central Services to the Public,Management & Support Services,IT,Supplies & Services,Communications & Computing,Land Line Telephone Charges,15/02/2024,505974,876.12,Gamma
External Trading Accounts,Business Parks,Premises & Asset Management,Premises related Expenditure,Energy Costs,Electricity,08/02/2024,503600,886.83,Npower
Central Services to the Public,Management & Support Services,Finance,Supplies & Services,Communications & Computing,Software Maintenance,01/02/2024,504225,447.2,Bottomline Technologies Ltd
Central Services to the Public,Local Tax Collection,Revenues,Supplies & Services,Communications & Computing,Software Maintenance,01/02/2024,504225,134.16,Bottomline Technologies Ltd
Central Services to the Public,Local Tax Collection,Revenues,Supplies & Services,Communications & Computing,Software Maintenance,01/02/2024,504225,268.32,Bottomline Technologies Ltd
Housing Services,Housing Benefits ,Revenues,Supplies & Services,Communications & Computing,Software Maintenance,01/02/2024,504225,44.72,Bottomline Technologies Ltd
Cultural & Related,Recreation & Sport,Community and Leisure ,Premises related Expenditure,Water Services,Water And Sewerage Charges,15/02/2024,504594,1079.51,Business Stream
Central Services to the Public,Management & Support Services,Legal & Democratic,Employees,Indirect Employee Expenses,Agency Staff - Waged Posts,29/02/2024,507247,900,Sellick Partnership Ltd
Environmental & Regulatory,Waste & Recycling Management,Environmental,Supplies & Services,"Equipment, Furniture & Materials",Purchase Equip + Materials,29/02/2024,506540,600,Re-Design Uk Ltd
Central Services to the Public,Management & Support Services,Environmental,Supplies & Services,"Printing, Stationery & General Office Expenses",External Printing,29/02/2024,506540,300,Re-Design Uk Ltd
Planning & Development,Planning Policy,Plan Pol & Transport,Supplies & Services,"Printing, Stationery & General Office Expenses",External Printing,08/02/2024,504907,910,Viro Print Limited
Environmental & Regulatory,Waste & Recycling Management,Environmental,Supplies & Services,"Equipment, Furniture & Materials",Purchase Equip + Materials,22/02/2024,504223,912.36,Wild View Cameras
Environmental & Regulatory,Regulatory Services,Housing and Environmental Health ,Supplies & Services,Grants and subscriptions,Capital Grants,15/02/2024,506191,1097.75,Bjc Design (Southeast) Ltd
External Trading Accounts,Business Parks,Premises & Asset Management,Premises related Expenditure,Energy Costs,Electricity,01/02/2024,503975,914.81,Totalenergies Gas & Power Ltd
Central Services to the Public,Management & Support Services,Legal & Democratic,Employees,Indirect Employee Expenses,Agency Staff - Waged Posts,01/02/2024,504222,915,Sellick Partnership Ltd
Central Services to the Public,Management & Support Services,Legal & Democratic,Supplies & Services,Services,Legal Fees,15/02/2024,506171,916.5,Weightmans Llp
External Trading Accounts,Business Parks,Premises & Asset Management,Premises related Expenditure,Energy Costs,Electricity,01/02/2024,503974,919.13,Totalenergies Gas & Power Ltd
External Trading Accounts,Business Parks,Premises & Asset Management,Premises related Expenditure,Energy Costs,Electricity,22/02/2024,506166,919.42,Totalenergies Gas & Power Ltd
Central Services to the Public,Management & Support Services,Premises & Asset Management,Third Party Payments,Other Establishments,Private Contractors,22/02/2024,506574,925,Protec Roofing Southern Ltd
Central Services to the Public,Management & Support Services,Premises & Asset Management,Third Party Payments,Other Establishments,Private Contractors,08/02/2024,505265,1110,C A M Carpentry
Central Services to the Public,Management & Support Services,Premises & Asset Management,Third Party Payments,Other Establishments,Private Contractors,22/02/2024,505999,1110,C A M Carpentry
Planning & Development,Planning Policy,Plan Pol & Transport,Supplies & Services,"Printing, Stationery & General Office Expenses",External Printing,15/02/2024,505608,927,Bulpitt Print Ltd
Central Services to the Public,Elections,Legal & Democratic,Supplies & Services,"Printing, Stationery & General Office Expenses",Postage Costs,01/02/2024,504168,930,Financial Data Management Plc
Central Services to the Public,Management & Support Services,Premises & Asset Management,Premises related Expenditure,Repairs Alterations & Maintenance of Buildings,Planned Maintenance - Non Est,22/02/2024,506556,14.66,Corrigenda Ltd
Central Services to the Public,Management & Support Services,Premises & Asset Management,Premises related Expenditure,Repairs Alterations & Maintenance of Buildings,Planned Maintenance - Non Est,22/02/2024,506556,7.33,Corrigenda Ltd
Central Services to the Public,Management & Support Services,Premises & Asset Management,Premises related Expenditure,Repairs Alterations & Maintenance of Buildings,Planned Maintenance - Non Est,22/02/2024,506556,3.67,Corrigenda Ltd
Cultural & Related,Recreation & Sport,Community and Leisure ,Premises related Expenditure,Repairs Alterations & Maintenance of Buildings,Planned Maintenance - Non Est,22/02/2024,506556,51.41,Corrigenda Ltd
Cultural & Related,Recreation & Sport,Community and Leisure ,Premises related Expenditure,Repairs Alterations & Maintenance of Buildings,Planned Maintenance - Non Est,22/02/2024,506556,198.18,Corrigenda Ltd
Cultural & Related,Recreation & Sport,Community and Leisure ,Premises related Expenditure,Repairs Alterations & Maintenance of Buildings,Planned Maintenance - Non Est,22/02/2024,506556,66.06,Corrigenda Ltd
Cultural & Related,Recreation & Sport,Community and Leisure ,Premises related Expenditure,Repairs Alterations & Maintenance of Buildings,Planned Maintenance - Non Est,22/02/2024,506556,121.13,Corrigenda Ltd
Cultural & Related,Recreation & Sport,Community and Leisure ,Premises related Expenditure,Repairs Alterations & Maintenance of Buildings,Planned Maintenance - Non Est,22/02/2024,506556,33.08,Corrigenda Ltd
Cultural & Related,Recreation & Sport,Community and Leisure ,Premises related Expenditure,Repairs Alterations & Maintenance of Buildings,Planned Maintenance - Non Est,22/02/2024,506556,257,Corrigenda Ltd
Cultural & Related,Recreation & Sport,Community and Leisure ,Premises related Expenditure,Repairs Alterations & Maintenance of Buildings,Planned Maintenance - Non Est,22/02/2024,506556,183.52,Corrigenda Ltd
Cultural & Related,Culture & Heritage,Community and Leisure ,Premises related Expenditure,Repairs Alterations & Maintenance of Buildings,Planned Maintenance - Non Est,22/02/2024,506556,3.66,Corrigenda Ltd
Central Services to the Public,Management & Support Services,Premises & Asset Management,Premises related Expenditure,Energy Costs,Gas,15/02/2024,506091,940.58,Totalenergies Gas & Power Ltd
Central Services to the Public,Management & Support Services,Legal & Democratic,Employees,Indirect Employee Expenses,Agency Staff - Waged Posts,22/02/2024,506176,945,Sellick Partnership Ltd
Cultural & Related,Open Spaces,Environmental,Supplies & Services,Services,Training Courses,22/02/2024,506598,950,Down To Earth Training Services 
Environmental & Regulatory,Street Cleansing (not chargeable to Highways),Environmental,Supplies & Services,"Equipment, Furniture & Materials",Purchase Equip + Materials,15/02/2024,502736,953.75,Spaldings (Uk) Limited
Central Services to the Public,Management & Support Services,Legal & Democratic,Employees,Indirect Employee Expenses,Agency Staff - Waged Posts,15/02/2024,505594,960,Sellick Partnership Ltd
Central Services to the Public,Management & Support Services,Legal & Democratic,Employees,Indirect Employee Expenses,Agency Staff - Waged Posts,29/02/2024,507248,960,Sellick Partnership Ltd
Central Services to the Public,Management & Support Services,Premises & Asset Management,Third Party Payments,Other Establishments,Private Contractors,15/02/2024,506224,1155,Personal Data - Data Protection Act 1998
Environmental & Regulatory,Regulatory Services,Housing and Environmental Health ,Supplies & Services,Grants and subscriptions,Capital Grants,29/02/2024,507689,1158.85,Prism Medical Uk
Housing Services,Housing Benefits ,Revenues,Employees,Indirect Employee Expenses,Temporary Staff,22/02/2024,506231,966.57,Venn Group Limited
External Trading Accounts,Business Parks,Premises & Asset Management,Premises related Expenditure,Energy Costs,Electricity,22/02/2024,506647,966.91,Npower
Central Services to the Public,Management & Support Services,Environmental,Supplies & Services,"Equipment, Furniture & Materials",Purchase Equip + Materials,29/02/2024,507616,975,Defibshop
External Trading Accounts,Business Parks,Premises & Asset Management,Premises related Expenditure,Energy Costs,Electricity,29/02/2024,506912,982.94,Npower
Central Services to the Public,Management & Support Services,HR Services,Supplies & Services,Services,External Training Consultants,08/02/2024,505204,995,The Conflict Training Company
Central Services to the Public,Management & Support Services,IT,Supplies & Services,Services,Training Courses,15/02/2024,505582,995,Zoho Corporation Limited
Central Services to the Public,Management & Support Services,Premises & Asset Management,Premises related Expenditure,Energy Costs,Electricity,08/02/2024,503518,995.23,Npower
Central Services to the Public,Management & Support Services,Premises & Asset Management,Premises related Expenditure,Repairs Alterations & Maintenance of Buildings,Planned Maintenance - Non Est,22/02/2024,506837,1000,Ul Vs Ltd
"Highways, Roads & Transport",Parking Services,Plan Pol & Transport,Premises related Expenditure,Repairs Alterations & Maintenance of Buildings,Car Parks - Signs + Lines,08/02/2024,502318,1000,Coupe Line
Cultural & Related,Open Spaces,Environmental,Transport Related Expenditure,Direct Transport Costs,Repair Materials,29/02/2024,506285,401.6,Md Services (Andover) Ltd
Environmental & Regulatory,Waste & Recycling Management,Environmental,Transport Related Expenditure,Direct Transport Costs,Repair Materials,29/02/2024,506285,75.3,Md Services (Andover) Ltd
Environmental & Regulatory,Street Cleansing (not chargeable to Highways),Environmental,Transport Related Expenditure,Direct Transport Costs,Repair Materials,29/02/2024,506285,401.6,Md Services (Andover) Ltd
Environmental & Regulatory,Waste management,Environmental,Transport Related Expenditure,Direct Transport Costs,Repair Materials,29/02/2024,506285,125.5,Md Services (Andover) Ltd
External Trading Accounts,Business Parks,Premises & Asset Management,Premises related Expenditure,Repairs Alterations & Maintenance of Buildings,Planned Maintenance - Non Est,22/02/2024,506651,1008.25,Pattco
Cultural & Related,Recreation & Sport,Community and Leisure ,Premises related Expenditure,Water Services,Water And Sewerage Charges,15/02/2024,505232,1213.01,Castle Water Limited
Planning & Development,Development Control,Planning & Building,Supplies & Services,Communications & Computing,Computer Software,15/02/2024,504818,1016,The Microfilm Shop
Environmental & Regulatory,Waste management,Environmental,Transport Related Expenditure,Direct Transport Costs,Tyres,08/02/2024,504751,972.91,Tructyre Ats
Environmental & Regulatory,Waste management,Environmental,Transport Related Expenditure,Direct Transport Costs,Tyres,08/02/2024,504751,46.51,Tructyre Ats
Cultural & Related,Open Spaces,Environmental,Supplies & Services,"Equipment, Furniture & Materials",Equipment Hire,15/02/2024,505471,1034.68,Karcher Hire Ltd
Planning & Development,Development Control,Planning & Building,Employees,Indirect Employee Expenses,Temporary Staff,01/02/2024,503879,1040,G2 Recruitment Solutions
Planning & Development,Development Control,Planning & Building,Employees,Indirect Employee Expenses,Temporary Staff,22/02/2024,506575,1040,G2 Recruitment Solutions
Planning & Development,Development Control,Planning & Building,Employees,Indirect Employee Expenses,Temporary Staff,22/02/2024,506582,1040,G2 Recruitment Solutions
Cultural & Related,Open Spaces,Environmental,Third Party Payments,Other Establishments,Private Contractors,15/02/2024,505580,1040,Evergreen Rabbit Control
Housing Services,Homelessness,Housing and Environmental Health ,Supplies & Services,Grants & Subscriptions,Grants,01/02/2024,504881,1248.52,Vivid
Environmental & Regulatory,Waste management,Environmental,Employees,Indirect Employee Expenses,Agency Staff - Waged Posts,01/02/2024,504318,627.76,Aligra
Environmental & Regulatory,Waste management,Environmental,Employees,Indirect Employee Expenses,Agency Staff - Waged Posts,01/02/2024,504318,415.3,Aligra
Central Services to the Public,Management & Support Services,IT,Supplies & Services,Communications & Computing,Communication Links,01/02/2024,504294,802.6,Zen Internet Limited
Cultural & Related,Recreation & Sport,Community and Leisure ,Supplies & Services,Communications & Computing,Land Line Telephone Charges,01/02/2024,504294,103.5,Zen Internet Limited
Cultural & Related,Culture & Heritage,Community and Leisure ,Supplies & Services,Communications & Computing,Land Line Telephone Charges,01/02/2024,504294,35,Zen Internet Limited
"Highways, Roads & Transport",Parking Services,Plan Pol & Transport,Supplies & Services,Communications & Computing,Communication Links,01/02/2024,504294,41.98,Zen Internet Limited
"Highways, Roads & Transport",Parking Services,Plan Pol & Transport,Supplies & Services,Communications & Computing,Land Line Telephone Charges,01/02/2024,504294,60.16,Zen Internet Limited
Environmental & Regulatory,Community Development,Community and Leisure ,Supplies & Services,Services,Training Courses,29/02/2024,505961,1045,Cspt Ltd
Central Services to the Public,Management & Support Services,Premises & Asset Management,Supplies & Services,Services,Professional Fees,15/02/2024,506159,450,Jcp Engineers
Cultural & Related,Culture & Heritage,Community and Leisure ,Premises related Expenditure,Repairs Alterations & Maintenance of Buildings,Planned Maintenance - Non Est,15/02/2024,506159,625,Jcp Engineers 
Central Services to the Public,Management & Support Services,Premises & Asset Management,Third Party Payments,Other Establishments,Private Contractors,15/02/2024,506193,1078,Andover Glass Works Ltd
Planning & Development,Development Control,Planning & Building,Employees,Indirect Employee Expenses,Temporary Staff,15/02/2024,505975,1082.5,Hayden'S Arboricultural Consultants
Planning & Development,Development Control,Planning & Building,Employees,Indirect Employee Expenses,Temporary Staff,29/02/2024,507193,1082.5,Hayden'S Arboricultural Consultants
Cultural & Related,Recreation & Sport,Community and Leisure ,Premises related Expenditure,Energy Costs,Gas,15/02/2024,506009,1088,Totalenergies Gas & Power Ltd
Central Services to the Public,Management & Support Services,Chief Executive's,Supplies & Services,Services,Training Courses,15/02/2024,505977,1320,Georgia Turner Communications Ltd
Central Services to the Public,Management & Support Services,Premises & Asset Management,Premises related Expenditure,Energy Costs,Electricity,22/02/2024,506638,1105.84,Npower
"Highways, Roads & Transport",Public Transport,Plan Pol & Transport,Third Party Payments,Transport Operators in Respect of Concessionary Fares,Voluntary Orgs Reimbursement,01/02/2024,504129,1332,Andover Neighbourcare
Central Services to the Public,Management & Support Services,Premises & Asset Management,Third Party Payments,Other Establishments,Private Contractors,22/02/2024,506579,1115.2,Spear Electrical Limited
Central Services to the Public,Management & Support Services,Environmental,Supplies & Services,Services,Professional Fees,01/02/2024,504787,1350,Parrish Transport Solutions Ltd
Planning & Development,Building Control,Planning & Building,Employees,Indirect Employee Expenses,Agency Staff - Waged Posts,29/02/2024,506778,1126.77,Hays Specialist Recruitment
Cultural & Related,Culture & Heritage,Community and Leisure ,Supplies & Services,Communications & Computing,Computer Software,08/02/2024,505251,1359.39,Ticketsolve Ltd
Central Services to the Public,Management & Support Services,Premises & Asset Management,Premises related Expenditure,Energy Costs,Gas,22/02/2024,506130,1133.91,Totalenergies Gas & Power Ltd
External Trading Accounts,Economic Development,Premises & Asset Management,Premises related Expenditure,Repairs Alterations & Maintenance of Buildings,Planned Maintenance - Non Est,15/02/2024,505948,570.36,Temple Lifts Ltd
"Highways, Roads & Transport",Parking Services,Plan Pol & Transport,Premises related Expenditure,Repairs Alterations & Maintenance of Buildings,Planned Maintenance - Non Est,15/02/2024,505948,570.36,Temple Lifts Ltd
Central Services to the Public,Local Tax Collection,Revenues,Employees,Indirect Employee Expenses,Temporary Staff,08/02/2024,505491,1166.55,Venn Group Limited
Housing Services,Housing Benefits ,Revenues,Employees,Indirect Employee Expenses,Temporary Staff,22/02/2024,504185,1166.55,Venn Group Limited
Housing Services,Housing Benefits ,Revenues,Employees,Indirect Employee Expenses,Temporary Staff,22/02/2024,504773,1166.55,Venn Group Limited
"Highways, Roads & Transport",Highways and roads - maintenance,Plan Pol & Transport,Third Party Payments,Private contractors,Main Contractor Costs,22/02/2024,506909,1174.5,Kieron Beattie Landscaping Ltd
Central Services to the Public,Management & Support Services,Premises & Asset Management,Premises related Expenditure,Energy Costs,Electricity,08/02/2024,503569,1180.36,Npower
Cultural & Related,Recreation & Sport,Community and Leisure ,Premises related Expenditure,Energy Costs,Gas,15/02/2024,506093,1182.37,Totalenergies Gas & Power Ltd
"Highways, Roads & Transport",Public Transport,Plan Pol & Transport,Third Party Payments,Transport Operators in Respect of Concessionary Fares,Voluntary Orgs Reimbursement,01/02/2024,504130,1431,Andover Neighbourcare
"Highways, Roads & Transport",Parking Services,Plan Pol & Transport,Supplies & Services,Services,Professional Fees,08/02/2024,505215,1195.12,Advam (Uk) Limited
Planning & Development,Development Control,Planning & Building,Supplies & Services,Services,Legal Fees,15/02/2024,505970,1200,No5 Chambers
Environmental & Regulatory,Waste management,Environmental,Supplies & Services,Grants & Subscriptions,Subscriptions,08/02/2024,504231,1220.63,Hampshire County Council
Environmental & Regulatory,Waste management,Environmental,Supplies & Services,"Printing, Stationery & General Office Expenses",External Printing,15/02/2024,502614,1221.96,Dura-Id Solutions Ltd
Housing Services,Homelessness,Housing and Environmental Health ,Supplies & Services,Grants & Subscriptions,Grants,08/02/2024,505618,1500,Ez Accommodation Services Ltd
Cultural & Related,Open Spaces,Community and Leisure ,Supplies & Services,"Equipment, Furniture & Materials",Purchase Equip + Materials,08/02/2024,503454,1253,Streetmaster (South Wales) Ltd
Planning & Development,Development Control,Planning & Building,Employees,Indirect Employee Expenses,Temporary Staff,08/02/2024,503619,1255.7,Hayden'S Arboricultural Consultants
Cultural & Related,Open Spaces,Environmental,Supplies & Services,Miscellaneous Expenses,Waste Collection,29/02/2024,502183,1261.12,Collard Enviromental Ltd
Central Services to the Public,Management & Support Services,Premises & Asset Management,Premises related Expenditure,Energy Costs,Electricity,01/02/2024,501586,1313.68,Npower
Central Services to the Public,Management & Support Services,Finance,Supplies & Services,Miscellaneous Expenses,Vehicle insurance claims,22/02/2024,506879,1580.4,Protector Insurance
Central Services to the Public,Local Tax Collection,Revenues,Supplies & Services,Grants & Subscriptions,Subscriptions,29/02/2024,503883,132,Irrv Hq
Central Services to the Public,Local Tax Collection,Revenues,Supplies & Services,Grants & Subscriptions,Subscriptions,29/02/2024,503883,528,Irrv Hq
Housing Services,Housing Benefits ,Revenues,Supplies & Services,Grants & Subscriptions,Subscriptions,29/02/2024,503883,330,Irrv Hq
Central Services to the Public,Local Tax Collection,Revenues,Supplies & Services,Grants & Subscriptions,Subscriptions,29/02/2024,503883,330,Irrv Hq
Cultural & Related,Open Spaces,Environmental,Supplies & Services,"Equipment, Furniture & Materials",Purchases for playgrounds,29/02/2024,505208,1321.16,Fleet (Line Markers) Ltd
Central Services to the Public,Management & Support Services,Premises & Asset Management,Premises related Expenditure,Energy Costs,Electricity,08/02/2024,503565,1323.21,Npower
Environmental & Regulatory,Street Cleansing (not chargeable to Highways),Environmental,Transport Related Expenditure,Direct Transport Costs,Tyres,29/02/2024,506270,99.95,Tructyre Ats
Environmental & Regulatory,Waste management,Environmental,Transport Related Expenditure,Direct Transport Costs,Tyres,29/02/2024,506270,1236.37,Tructyre Ats
Central Services to the Public,Management & Support Services,Premises & Asset Management,Premises related Expenditure,Energy Costs,Gas,15/02/2024,506012,1337.75,Totalenergies Gas & Power Ltd
External Trading Accounts,Business Parks,Premises & Asset Management,Premises related Expenditure,Energy Costs,Electricity,29/02/2024,507217,1552.21,Southern Electric
Planning & Development,Planning Policy,Plan Pol & Transport,Supplies & Services,Grants & Subscriptions,Grants,08/02/2024,504232,1648.16,Hampshire County Council
Planning & Development,Development Control,Planning & Building,Employees,Indirect Employee Expenses,Temporary Staff,22/02/2024,506576,1381.25,G2 Recruitment Solutions
Cultural & Related,Recreation & Sport,Community and Leisure ,Premises related Expenditure,Grounds Maintenance Costs,Gm - Additional Works,08/02/2024,505500,1390,Defibshop
Central Services to the Public,Local Tax Collection,Revenues,Supplies & Services,"Printing, Stationery & General Office Expenses",Stationery,01/02/2024,504566,1399,Hound Envelopes Limited
Planning & Development,Development Control,Planning & Building,Employees,Indirect Employee Expenses,Temporary Staff,22/02/2024,506581,1430,G2 Recruitment Solutions
"Highways, Roads & Transport",Public Transport,Plan Pol & Transport,Third Party Payments,Transport Operators in Respect of Concessionary Fares,Voluntary Orgs Reimbursement,29/02/2024,506596,1717.5,Andover Neighbourcare
Cultural & Related,Tourism,Planning Policy & Economic Development ,Premises related Expenditure,Repairs Alterations & Maintenance of Buildings,Planned Maintenance - Non Est,15/02/2024,505629,64.24,Temple Lifts Ltd
Cultural & Related,Culture & Heritage,Premises & Asset Management,Premises related Expenditure,Repairs Alterations & Maintenance of Buildings,Planned Maintenance - Non Est,15/02/2024,505629,225,Temple Lifts Ltd
Cultural & Related,Culture & Heritage,Premises & Asset Management,Premises related Expenditure,Repairs Alterations & Maintenance of Buildings,Planned Maintenance - Non Est,15/02/2024,505629,32.12,Temple Lifts Ltd
Central Services to the Public,Management & Support Services,Premises & Asset Management,Premises related Expenditure,Repairs Alterations & Maintenance of Buildings,Planned Maintenance - Non Est,15/02/2024,505629,900,Temple Lifts Ltd
Cultural & Related,Recreation & Sport,Community and Leisure ,Premises related Expenditure,Repairs Alterations & Maintenance of Buildings,Planned Maintenance - Non Est,15/02/2024,505629,225,Temple Lifts Ltd
Central Services to the Public,Management & Support Services,Premises & Asset Management,Premises related Expenditure,Repairs Alterations & Maintenance of Buildings,Planned Maintenance - Non Est,01/02/2024,504763,1454,Harrison Flagpoles
Planning & Development,Planning Policy,Plan Pol & Transport,Supplies & Services,Services,Project Consultancy - Policy,15/02/2024,505939,1750,Fareham Borough Council
Environmental & Regulatory,Waste management,Environmental,Transport Related Expenditure,Direct Transport Costs,Repair Materials,29/02/2024,506831,1486.22,Dennis Eagle Ltd
Planning & Development,Development Control,Planning & Building,Employees,Indirect Employee Expenses,Temporary Staff,15/02/2024,506195,1495,G2 Recruitment Solutions
Central Services to the Public,Management & Support Services,Premises & Asset Management,Third Party Payments,Other Establishments,Private Contractors,08/02/2024,504569,1500,Dark Horse Energy Consultancy
Central Services to the Public,Management & Support Services,Environmental,Transport Related Expenditure,Direct Transport Costs,Oils,29/02/2024,506873,1500.6,Fuchs Lubricants (Uk) Plc
Central Services to the Public,Management & Support Services,Premises & Asset Management,Premises related Expenditure,Energy Costs,Electricity,22/02/2024,506636,1509.51,Npower
Planning & Development,Development Control,Planning & Building,Employees,Indirect Employee Expenses,Temporary Staff,22/02/2024,506578,1511.25,G2 Recruitment Solutions
Cultural & Related,Recreation & Sport,Community and Leisure ,Premises related Expenditure,Water Services,Water And Sewerage Charges,01/02/2024,500329,1818.35,Leep Utilities
Environmental & Regulatory,Regulatory Services,Housing and Environmental Health ,Supplies & Services,Grants and subscriptions,Capital Grants,15/02/2024,506205,1826.51,Bjc Design (Southeast) Ltd
Central Services to the Public,Management & Support Services,IT,Supplies & Services,"Equipment, Furniture & Materials",IT Supp and Serv AMP,22/02/2024,506797,1530,Misco Technologies Ltd
Planning & Development,Planning Policy,Plan Pol & Transport,Supplies & Services,Services,Project Consultancy - Policy,29/02/2024,499891,1530,Ridge & Partners Llp
Cultural & Related,Culture & Heritage,Community and Leisure ,Supplies & Services,Miscellaneous Expenses,Booking Of Acts,15/02/2024,505944,1536,Tin Cat Entertainment Ltd
Central Services to the Public,Management & Support Services,Environmental,Transport Related Expenditure,Direct Transport Costs,Workshop Consumables,29/02/2024,506150,928.8,Md Services (Andover) Ltd
Central Services to the Public,Management & Support Services,Environmental,Transport Related Expenditure,Direct Transport Costs,Repair Materials,29/02/2024,506150,581.84,Md Services (Andover) Ltd
Central Services to the Public,Management & Support Services,Environmental,Supplies & Services,"Equipment, Furniture & Materials",Purchase Tools,29/02/2024,506150,38.04,Md Services (Andover) Ltd
Environmental & Regulatory,Street Cleansing (not chargeable to Highways),Environmental,Transport Related Expenditure,Direct Transport Costs,Repair Materials,08/02/2024,504892,1567.16,Bucher Municipal Limited
Planning & Development,Development Control,Planning & Building,Employees,Indirect Employee Expenses,Temporary Staff,01/02/2024,503964,1579,Hayden'S Arboricultural Consultants
Cultural & Related,Open Spaces,Community and Leisure ,Third Party Payments,Private contractors,Main Contractor Costs,22/02/2024,503969,1580,Rocon Contractors Ltd
Planning & Development,Development Control,Planning & Building,Employees,Indirect Employee Expenses,Advertising Of Vacancies,08/02/2024,505230,1595,Haymarket Media Group Ltd
Planning & Development,Development Control,Planning & Building,Employees,Indirect Employee Expenses,Temporary Staff,22/02/2024,506577,1608.75,G2 Recruitment Solutions
Cultural & Related,Culture & Heritage,Community and Leisure ,Supplies & Services,Miscellaneous Expenses,Booking Of Acts,22/02/2024,506216,1935.33,Purple Zeppelin
Central Services to the Public,Management & Support Services,Premises & Asset Management,Premises related Expenditure,Energy Costs,Gas,15/02/2024,506119,1614.3,Totalenergies Gas & Power Ltd
Environmental & Regulatory,Regulatory Services,Housing and Environmental Health ,Supplies & Services,Grants and subscriptions,Capital Grants,08/02/2024,505560,2000,Ghd Partnership Ltd
Environmental & Regulatory,Regulatory Services,Housing and Environmental Health ,Supplies & Services,Grants and subscriptions,Capital Grants,08/02/2024,505561,2000,Bjc Design
Planning & Development,Community Development,Community and Leisure ,Supplies & Services,Grants & Subscriptions,Grants,15/02/2024,506289,2000,Baby Necessities Southampton
Central Services to the Public,Management & Support Services,Environmental,Supplies & Services,"Equipment, Furniture & Materials",Maintenance Equip + Materials,29/02/2024,505922,1682,Wp Group Limited
Central Services to the Public,Local Tax Collection,Revenues,Supplies & Services,Services,Professional Fees,29/02/2024,507600,130,Ross & Roberts
Environmental & Regulatory,Waste management,Environmental,Transport Related Expenditure,Direct Transport Costs,Repair Materials,15/02/2024,506269,1691.76,Dennis Eagle Ltd
Housing Services,Homelessness,Housing and Environmental Health ,Supplies & Services,Grants & Subscriptions,Grants,29/02/2024,507670,2057.55,Aster Group
External Trading Accounts,Business Parks,Premises & Asset Management,Premises related Expenditure,Water Services,Water And Sewerage Charges,01/02/2024,501746,2070.22,Castle Water Limited
Central Services to the Public,Management & Support Services,Premises & Asset Management,Employees,Indirect Employee Expenses,Agency Staff - Waged Posts,22/02/2024,506234,1728,Matchtech Group Uk Ltd
Environmental & Regulatory,Street Cleansing (not chargeable to Highways),Environmental,Supplies & Services,"Equipment, Furniture & Materials",Purchase Equip + Materials,15/02/2024,502204,1733.48,Tudor Environmental
Central Services to the Public,Management & Support Services,Premises & Asset Management,Third Party Payments,Other Establishments,Private Contractors,15/02/2024,506260,1745.88,Willmont Building Services
Environmental & Regulatory,Waste management,Environmental,Transport Related Expenditure,Direct Transport Costs,Tyres,08/02/2024,504601,1747.6,Tructyre Ats
Cultural & Related,Open Spaces,Community and Leisure ,Premises related Expenditure,Grounds Maintenance Costs,Gm - Additional Works,08/02/2024,504831,1797.75,Barker & Geary Ltd 
Central Services to the Public,Management & Support Services,Premises & Asset Management,Employees,Indirect Employee Expenses,Agency Staff - Waged Posts,15/02/2024,505486,1800,Matchtech Group Uk Ltd
Central Services to the Public,Management & Support Services,Premises & Asset Management,Employees,Indirect Employee Expenses,Agency Staff - Waged Posts,22/02/2024,506603,1800,Matchtech Group Uk Ltd
External Trading Accounts,Business Parks,Premises & Asset Management,Premises related Expenditure,Energy Costs,Electricity,22/02/2024,506621,1807.03,Npower
Planning & Development,Building Control,Planning & Building,Employees,Indirect Employee Expenses,Agency Staff - Waged Posts,15/02/2024,505492,1818.44,Hays Specialist Recruitment
Cultural & Related,Open Spaces,Environmental,Supplies & Services,"Equipment, Furniture & Materials",Purchases for playgrounds,29/02/2024,506526,1851.3,Gb Sport & Leisure Uk Ltd
Cultural & Related,Recreation & Sport,Community and Leisure ,Premises related Expenditure,Energy Costs,Electricity,15/02/2024,494661,1873.98,Npower
Environmental & Regulatory,Regulatory Services,Housing and Environmental Health ,Supplies & Services,Grants and subscriptions,Capital Grants,29/02/2024,507688,2267.33,Liftability Ltd
Environmental & Regulatory,Regulatory Services,Housing and Environmental Health ,Supplies & Services,Grants and subscriptions,Capital Grants,01/02/2024,504841,2287.33,Liftability Ltd
Central Services to the Public,Management & Support Services,Premises & Asset Management,Employees,Indirect Employee Expenses,Agency Staff - Waged Posts,22/02/2024,506829,1920,Matchtech Group Uk Ltd
Central Services,Corporate & Democratic Core,Corporate & Democratic,Supplies & Services,Services,Legal Fees,01/02/2024,503983,1925,Radcliffe Chambers
Central Services to the Public,Management & Support Services,Premises & Asset Management,Premises related Expenditure,Energy Costs,Gas,22/02/2024,506124,1939.97,Totalenergies Gas & Power Ltd
Planning & Development,Building Control,Planning & Building,Employees,Indirect Employee Expenses,Agency Staff - Waged Posts,08/02/2024,505147,1993.37,Hays Specialist Recruitment
Central Services to the Public,Management & Support Services,Chief Executive's,Supplies & Services,Services,Training Courses,15/02/2024,505496,2000,Commercial Services Kent Ltd
Planning & Development,Development Control,Planning & Building,Supplies & Services,Services,Legal Fees,29/02/2024,506839,2000,Cornerstone Barristers
Central Services to the Public,Management & Support Services,Premises & Asset Management,Third Party Payments,Other Establishments,Private Contractors,29/02/2024,507207,2044.64,Clearwater 2010 Ltd
Cultural & Related,Recreation & Sport,Community and Leisure ,Premises related Expenditure,Energy Costs,Gas,15/02/2024,506010,2056.43,Totalenergies Gas & Power Ltd
Environmental & Regulatory,Regulatory Services,Housing and Environmental Health ,Supplies & Services,Grants and subscriptions,Capital Grants,29/02/2024,507236,2475,Hampshire Mobility Services
Central Services to the Public,Management & Support Services,IT,Supplies & Services,"Equipment, Furniture & Materials",IT Supp and Serv AMP,22/02/2024,506668,2063.6,Misco Technologies Ltd
Planning & Development,Building Control,Planning & Building,Employees,Indirect Employee Expenses,Agency Staff - Waged Posts,22/02/2024,506211,2076.82,Hays Specialist Recruitment
Planning & Development,Economic Development,Planning Policy & Economic Development ,Supplies & Services,Catering,Catering,22/02/2024,505940,2500,Test Valley Business Awards
Environmental & Regulatory,Regulatory Services,Housing and Environmental Health ,Supplies & Services,Miscellaneous Expenses,Kennel fees,01/02/2024,496343,2125.7,Three Oak Boarding Kennels
Central Services to the Public,Management & Support Services,Premises & Asset Management,Third Party Payments,Other Establishments,Private Contractors,01/02/2024,504305,2141.7,Corrigenda Ltd
Environmental & Regulatory,Regulatory Services,Housing and Environmental Health ,Supplies & Services,Grants and subscriptions,Capital Grants,08/02/2024,505564,2575,Liftech Systems (Se) Ltd
External Trading Accounts,Business Parks,Premises & Asset Management,Premises related Expenditure,Energy Costs,Electricity,08/02/2024,503556,2148.33,Npower
Planning & Development,Community Development,Community and Leisure ,Supplies & Services,Grants & Subscriptions,Grants,15/02/2024,506190,2625,Andover Mind
Planning & Development,Economic Development,Planning Policy & Economic Development ,Supplies & Services,Grants & Subscriptions,Subscriptions,29/02/2024,507211,2200,Business South Ltd
Planning & Development,Development Control,Planning & Building,Supplies & Services,Services,Project Consultancy - Policy,01/02/2024,504856,2250,Dixon Searle Partnership
External Trading Accounts,Property Investments,Premises & Asset Management,Premises related Expenditure,Repairs Alterations & Maintenance of Buildings,Salt & Gritting,15/02/2024,506255,2301.5,Outco Ltd
Environmental & Regulatory,Waste management,Environmental,Employees,Indirect Employee Expenses,Agency Staff - Waged Posts,15/02/2024,505595,1945.77,24-7 Staffing
Environmental & Regulatory,Waste management,Environmental,Employees,Indirect Employee Expenses,Agency Staff - Waged Posts,15/02/2024,505595,361.24,24-7 Staffing
Cultural & Related,Recreation & Sport,Community and Leisure ,Premises related Expenditure,Energy Costs,Gas,15/02/2024,506094,2347.35,Totalenergies Gas & Power Ltd
Housing Services,Homelessness,Housing and Environmental Health ,Supplies & Services,Grants & Subscriptions,Grants,29/02/2024,507679,2817.63,Aster Group
Central Services to the Public,Management & Support Services,HR Services,Supplies & Services,Services,Training Courses,22/02/2024,506215,1500,Mediation In The Workplace
Planning & Development,Development Control,Planning & Building,Supplies & Services,Services,Training Courses,22/02/2024,506215,480,Mediation In The Workplace
Environmental & Regulatory,Street Cleansing (not chargeable to Highways),Environmental,Supplies & Services,Services,Training Courses,22/02/2024,506215,390,Mediation In The Workplace
Environmental & Regulatory,Waste management,Environmental,Supplies & Services,Services,Training Courses,22/02/2024,506215,240,Mediation In The Workplace
Central Services to the Public,Management & Support Services,Environmental,Supplies & Services,Services,Training Courses,22/02/2024,506215,240,Mediation In The Workplace
Central Services,Corporate & Democratic Core,Corporate & Democratic,Supplies & Services,Services,Project Consultancy - Policy,29/02/2024,507195,2380,Cadence Innova Ltd
Central Services to the Public,Management & Support Services,HR Services,Third Party Payments,Other Local Authorities,Shared Service Contract Costs,22/02/2024,504838,2396.16,Mhr International Uk Ltd
Central Services to the Public,Management & Support Services,IT,Employees,Indirect Employee Expenses,Temporary Staff,08/02/2024,504750,2400,Maru-Search
Central Services to the Public,Management & Support Services,IT,Employees,Indirect Employee Expenses,Temporary Staff,22/02/2024,506172,2400,Maru-Search
Planning & Development,Planning Policy,Plan Pol & Transport,Supplies & Services,Services,Project Consultancy - Policy,29/02/2024,507240,2400,Aecom Limited
"Highways, Roads & Transport",Parking Services,Plan Pol & Transport,Supplies & Services,Services,Professional Fees,01/02/2024,503149,2425.38,Jade Security Services Ltd
Central Services to the Public,Management & Support Services,Premises & Asset Management,Third Party Payments,Other Establishments,Private Contractors,22/02/2024,506823,2917.8,Light And Touch
Planning & Development,Building Control,Planning & Building,Employees,Indirect Employee Expenses,Agency Staff - Waged Posts,01/02/2024,504307,2454.18,Hays Specialist Recruitment
Central Services to the Public,Management & Support Services,Finance,Supplies & Services,Services,Professional Fees,29/02/2024,506917,2950,Business Risk Solutions
Environmental & Regulatory,Regulatory Services,Housing and Environmental Health ,Supplies & Services,Miscellaneous Expenses,Kennel fees,15/02/2024,505490,2505.69,Three Oak Boarding Kennels
"Highways, Roads & Transport",Parking Services,Plan Pol & Transport,Premises related Expenditure,Energy Costs,Electricity,08/02/2024,503541,2550.84,Npower
"Highways, Roads & Transport",Parking Services,Plan Pol & Transport,Premises related Expenditure,Energy Costs,Electricity,22/02/2024,506614,2566.91,Npower
External Trading Accounts,Business Parks,Premises & Asset Management,Premises related Expenditure,Energy Costs,Electricity,08/02/2024,503540,2619.93,Npower
Environmental & Regulatory,Street Cleansing (not chargeable to Highways),Environmental,Employees,Indirect Employee Expenses,Agency Staff - Waged Posts,01/02/2024,502640,722.48,24-7 Staffing
Environmental & Regulatory,Waste management,Environmental,Employees,Indirect Employee Expenses,Agency Staff - Waged Posts,01/02/2024,502640,1921.14,24-7 Staffing
Environmental & Regulatory,Waste & Recycling Management,Environmental,Transport Related Expenditure,Direct Transport Costs,Tyres,29/02/2024,506206,116.59,Tructyre Ats
Environmental & Regulatory,Waste management,Environmental,Transport Related Expenditure,Direct Transport Costs,Tyres,29/02/2024,506206,1376.99,Tructyre Ats
Central Services to the Public,Management & Support Services,Environmental,Transport Related Expenditure,Direct Transport Costs,Repair Materials,29/02/2024,506206,1151.9,Tructyre Ats
Central Services to the Public,Management & Support Services,Premises & Asset Management,Third Party Payments,Other Establishments,Contract Catering,01/02/2024,504742,2673.25,Edwards And Ward Ltd
Central Services to the Public,Management & Support Services,Premises & Asset Management,Third Party Payments,Other Establishments,Contract Catering,29/02/2024,507197,2673.25,Edwards And Ward Ltd
Environmental & Regulatory,Regulatory Services,Premises & Asset Management,Premises related Expenditure,Repairs Alterations & Maintenance of Buildings,Building Maint - Non Estates,01/02/2024,504310,2160,Wallgate Ltd
Cultural & Related,Open Spaces,Community and Leisure ,Premises related Expenditure,Repairs Alterations & Maintenance of Buildings,Building Maint - Non Estates,01/02/2024,504310,540,Wallgate Ltd
Planning & Development,Planning Policy,Plan Pol & Transport,Supplies & Services,Services,Project Consultancy - Policy,01/02/2024,504748,2712,Aecom Limited
"Highways, Roads & Transport",Parking Services,Plan Pol & Transport,Supplies & Services,Services,Professional Fees,29/02/2024,505964,2734.42,Jade Security Services Ltd
Cultural & Related,Recreation & Sport,Community and Leisure ,Premises related Expenditure,Energy Costs,Gas,22/02/2024,506134,2771.37,Totalenergies Gas & Power Ltd
Cultural & Related,Open Spaces,Community and Leisure ,Premises related Expenditure,Repairs Alterations & Maintenance of Buildings,Estates premises costs - AMP,29/02/2024,505476,2840,Groundlord Ltd
Central Services,Corporate & Democratic Core,Corporate & Democratic,Supplies & Services,"Equipment, Furniture & Materials",IT Supp and Serv AMP,29/02/2024,490090,2888.81,Advanced Business Software And Solutions Ltd
Central Services to the Public,Management & Support Services,Premises & Asset Management,Supplies & Services,Communications & Computing,Software Maintenance,29/02/2024,506209,2930.32,Integrated Solutions Ltd
Planning & Development,Development Control,Planning & Building,Supplies & Services,Services,Legal Fees,08/02/2024,504895,2950,12 College Place
Cultural & Related,Culture & Heritage,Estates and Economic Development ,Third Party Payments,Private contractors,Main Contractor Costs,29/02/2024,506201,2963,Landmark Timber
Central Services to the Public,Management & Support Services,Premises & Asset Management,Supplies & Services,Services,Professional Fees,08/02/2024,504897,3000,1 Crown Office Row
Planning & Development,Development Control,Planning & Building,Supplies & Services,Services,Legal Fees,29/02/2024,506566,3000,Cornerstone Barristers
Environmental & Regulatory,Waste & Recycling Management,Environmental,Transport Related Expenditure,Direct Transport Costs,Tyres,29/02/2024,506900,244.76,Tructyre Ats
Environmental & Regulatory,Street Cleansing (not chargeable to Highways),Environmental,Transport Related Expenditure,Direct Transport Costs,Tyres,29/02/2024,506900,35.75,Tructyre Ats
Environmental & Regulatory,Waste management,Environmental,Transport Related Expenditure,Direct Transport Costs,Tyres,29/02/2024,506900,2769.23,Tructyre Ats
Central Services to the Public,Management & Support Services,Premises & Asset Management,Premises related Expenditure,Energy Costs,Electricity,08/02/2024,503549,3074.34,Npower
Environmental & Regulatory,Waste management,Environmental,Employees,Indirect Employee Expenses,Agency Staff - Waged Posts,01/02/2024,504565,2832.3,24-7 Staffing
Environmental & Regulatory,Waste management,Environmental,Employees,Indirect Employee Expenses,Agency Staff - Waged Posts,01/02/2024,504565,246.3,24-7 Staffing
Environmental & Regulatory,Regulatory Services,Housing and Environmental Health ,Supplies & Services,Grants and subscriptions,Capital Grants,01/02/2024,504840,3762,A & E Builders
Central Services to the Public,Management & Support Services,Premises & Asset Management,Third Party Payments,Other Establishments,Private Contractors,08/02/2024,505585,3136.13,Axis Fire And Security Services Ltd
External Trading Accounts,Economic Development,Premises & Asset Management,Premises related Expenditure,Energy Costs,Electricity,08/02/2024,503547,3147.33,Npower
Cultural & Related,Recreation & Sport,Community and Leisure ,Third Party Payments,Private contractors,Main Contractor Costs,01/02/2024,503107,3150,Keane Electrical Contractors Ltd
External Trading Accounts,Business Parks,Premises & Asset Management,Premises related Expenditure,Energy Costs,Electricity,29/02/2024,506616,3181.12,Npower
Central Services to the Public,Management & Support Services,Chief Executive's,Supplies & Services,Services,Training Courses,15/02/2024,504757,3196,Westminster Insight
Planning & Development,Development Control,Planning & Building,Third Party Payments,Commuted Sum,s106 Developer contributions,01/02/2024,504872,3835.6,Nursling And Rownhams Community Centre
Central Services to the Public,Local Tax Collection,Revenues,Supplies & Services,Miscellaneous Expenses,Election Fees,08/02/2024,505261,3236.87,Civica Election Services Ltd
Central Services to the Public,Management & Support Services,Premises & Asset Management,Employees,Indirect Employee Expenses,Agency Staff - Waged Posts,29/02/2024,506573,3250,Property Partners Recruitment Ltd
Central Services to the Public,Management & Support Services,Premises & Asset Management,Employees,Indirect Employee Expenses,Agency Staff - Waged Posts,29/02/2024,506862,3250,Property Partners Recruitment Ltd
Central Services to the Public,Management & Support Services,Premises & Asset Management,Employees,Indirect Employee Expenses,Agency Staff - Waged Posts,01/02/2024,504280,3251.8,Property Partners Recruitment Ltd
Central Services to the Public,Management & Support Services,Premises & Asset Management,Employees,Indirect Employee Expenses,Agency Staff - Waged Posts,08/02/2024,504893,3264.85,Property Partners Recruitment Ltd
Environmental & Regulatory,"Cemetery, Cremation and Mortuary Services",Community and Leisure ,Supplies & Services,Communications & Computing,Central Telephone Allocation,15/02/2024,505470,3306,Edge It Systems Limited
Cultural & Related,Recreation & Sport,Community and Leisure ,Premises related Expenditure,Energy Costs,Electricity,08/02/2024,503558,3389.13,Npower
Cultural & Related,Open Spaces,Community and Leisure ,Premises related Expenditure,Repairs Alterations & Maintenance of Buildings,Estates premises costs - AMP,29/02/2024,506537,3392.31,Stonbury Ltd
Central Services to the Public,Management & Support Services,Premises & Asset Management,Premises related Expenditure,Energy Costs,Electricity,29/02/2024,506620,3408.34,Npower
External Trading Accounts,Economic Development,Premises & Asset Management,Premises related Expenditure,Energy Costs,Electricity,22/02/2024,506645,3441.12,Npower
Cultural & Related,Open Spaces,Environmental,Supplies & Services,"Equipment, Furniture & Materials",Equipment Hire,15/02/2024,505472,3468.05,Karcher Hire Ltd
Cultural & Related,Open Spaces,Environmental,Supplies & Services,Miscellaneous Expenses,Waste Collection,08/02/2024,504774,3484.55,Veolia Es Hampshire Ltd
Central Services to the Public,Management & Support Services,IT,Employees,Indirect Employee Expenses,Temporary Staff,22/02/2024,505475,3510,Maru-Search
Central Services to the Public,Management & Support Services,HR Services,Supplies & Services,Miscellaneous Expenses,Medical Fees,01/02/2024,503586,220,Cordell Health Ltd
Central Services to the Public,Management & Support Services,HR Services,Supplies & Services,Miscellaneous Expenses,Medical Fees,01/02/2024,503586,3195,Cordell Health Ltd
Central Services to the Public,Management & Support Services,Premises & Asset Management,Supplies & Services,Miscellaneous Expenses,Medical Fees,01/02/2024,503586,17,Cordell Health Ltd
Central Services to the Public,Management & Support Services,Premises & Asset Management,Supplies & Services,Miscellaneous Expenses,Medical Fees,01/02/2024,503586,440,Cordell Health Ltd
Central Services to the Public,Management & Support Services,Chief Executive's,Supplies & Services,Miscellaneous Expenses,Medical Fees,01/02/2024,503586,17,Cordell Health Ltd
Cultural & Related,Open Spaces,Environmental,Supplies & Services,Miscellaneous Expenses,Medical Fees,01/02/2024,503586,17,Cordell Health Ltd
Planning & Development,Planning Policy,Plan Pol & Transport,Supplies & Services,Services,Project Consultancy - Policy,29/02/2024,507213,3620,Haskoningdhv Uk Limited
External Trading Accounts,Economic Development,Premises & Asset Management,Premises related Expenditure,Energy Costs,Electricity,29/02/2024,506961,3682.92,Npower
Planning & Development,Planning Policy,Plan Pol & Transport,Supplies & Services,Services,Project Consultancy - Policy,08/02/2024,504764,3720,Community Energy South
Environmental & Regulatory,Street Cleansing (not chargeable to Highways),Environmental,Employees,Indirect Employee Expenses,Agency Staff - Waged Posts,15/02/2024,504833,1144.32,24-7 Staffing
Environmental & Regulatory,Waste management,Environmental,Employees,Indirect Employee Expenses,Agency Staff - Waged Posts,15/02/2024,504833,1974.43,24-7 Staffing
Environmental & Regulatory,Waste management,Environmental,Employees,Indirect Employee Expenses,Agency Staff - Waged Posts,15/02/2024,504833,607.54,24-7 Staffing
Cultural & Related,Recreation & Sport,Community and Leisure ,Premises related Expenditure,Energy Costs,Electricity,22/02/2024,506618,3773.16,Npower
Cultural & Related,Culture & Heritage,Community and Leisure ,Premises related Expenditure,Energy Costs,Electricity,08/02/2024,505485,3567.05,Sparsholt College Hampshire
Cultural & Related,Culture & Heritage,Community and Leisure ,Premises related Expenditure,Water Services,Water And Sewerage Charges,08/02/2024,505485,254.34,Sparsholt College Hampshire
Environmental & Regulatory,Regulatory Services,Housing and Environmental Health ,Supplies & Services,Grants and subscriptions,Capital Grants,08/02/2024,505559,4546.36,The Abel Foundation
Planning & Development,Economic Development,Estates and Economic Development ,Third Party Payments,Private contractors,Main Contractor Costs,15/02/2024,504762,4594,Andover Pcn
"Highways, Roads & Transport",Parking Services,Plan Pol & Transport,Transport Related Costs,Management Fee,Car Park charges,29/02/2024,505921,3831.89,Park Now Limited
Central Services to the Public,Management & Support Services,IT,Supplies & Services,"Equipment, Furniture & Materials",IT Supp and Serv AMP,22/02/2024,505438,3900,Misco Technologies Ltd
Central Services to the Public,Management & Support Services,Premises & Asset Management,Third Party Payments,Other Establishments,Private Contractors,29/02/2024,507185,3922.5,Clearwater 2010 Ltd
Environmental & Regulatory,Regulatory Services,Housing and Environmental Health ,Supplies & Services,Grants and subscriptions,Capital Grants,08/02/2024,505562,4716.58,Bentley Mobility Services
Planning & Development,Development Control,Planning & Building,Supplies & Services,Services,Project Consultancy - Policy,15/02/2024,505583,3950,Dixon Searle Partnership
Central Services to the Public,Management & Support Services,IT,Supplies & Services,Communications & Computing,Software Maintenance,15/02/2024,505990,3965.08,Konica Minolta Business Soltns (Uk) Ltd
Central Services to the Public,Management & Support Services,Legal & Democratic,Supplies & Services,Services,Legal Fees,29/02/2024,505951,4000,Cornerstone Barristers
Central Services,Corporate & Democratic Core,Corporate & Democratic,Supplies & Services,Grants & Subscriptions,Subscriptions,29/02/2024,506158,4008,Lgiu
Environmental & Regulatory,Regulatory Services,Housing and Environmental Health ,Supplies & Services,Grants and subscriptions,Capital Grants,29/02/2024,507234,4819.05,Southern Counties Building Solutions Ltd
Central Services to the Public,Management & Support Services,IT,Employees,Indirect Employee Expenses,Temporary Staff,15/02/2024,506256,4080,Vector Resourcing Ltd
Cultural & Related,Culture & Heritage,Community and Leisure ,Supplies & Services,Miscellaneous Expenses,Booking Of Acts,22/02/2024,506606,4095.33,Lms Worldwide Ltd
"Highways, Roads & Transport",Parking Services,Plan Pol & Transport,Premises related Expenditure,Repairs Alterations & Maintenance of Buildings,Car Park General Repairs,22/02/2024,506828,4111.2,Spear Electrical Limited
Cultural & Related,Culture & Heritage,Community and Leisure ,Supplies & Services,Miscellaneous Expenses,Booking Of Acts,15/02/2024,505931,4292,Red Ents Limited
Housing Services,Homelessness,Housing and Environmental Health ,Supplies & Services,Grants & Subscriptions,Grants,22/02/2024,506923,5161.15,Vivid
Cultural & Related,Recreation & Sport,Community and Leisure ,Premises related Expenditure,Repairs Alterations & Maintenance of Buildings,Estates premises costs - AMP,01/02/2024,504749,4302,Ava Recreation
Planning & Development,Community Development,Community and Leisure ,Supplies & Services,Grants & Subscriptions,Grants,15/02/2024,506183,5250,King Arthurs Way Community Association
External Trading Accounts,Business Parks,Premises & Asset Management,Premises related Expenditure,Repairs Alterations & Maintenance of Buildings,Building Maint - Estates,29/02/2024,507198,145,Ul Vs Ltd
External Trading Accounts,Business Parks,Premises & Asset Management,Premises related Expenditure,Repairs Alterations & Maintenance of Buildings,Building Maint - Estates,29/02/2024,507198,285,Ul Vs Ltd
External Trading Accounts,Business Parks,Premises & Asset Management,Premises related Expenditure,Repairs Alterations & Maintenance of Buildings,Building Maint - Estates,29/02/2024,507198,1485,Ul Vs Ltd
Cultural & Related,Culture & Heritage,Premises & Asset Management,Premises related Expenditure,Repairs Alterations & Maintenance of Buildings,Building Maint - Estates,29/02/2024,507198,115,Ul Vs Ltd
Cultural & Related,Culture & Heritage,Premises & Asset Management,Premises related Expenditure,Repairs Alterations & Maintenance of Buildings,Building Maint - Estates,29/02/2024,507198,155,Ul Vs Ltd
Cultural & Related,Culture & Heritage,Premises & Asset Management,Premises related Expenditure,Repairs Alterations & Maintenance of Buildings,Building Maint - Estates,29/02/2024,507198,125,Ul Vs Ltd
Cultural & Related,Culture & Heritage,Premises & Asset Management,Premises related Expenditure,Repairs Alterations & Maintenance of Buildings,Building Maint - Estates,29/02/2024,507198,135,Ul Vs Ltd
Cultural & Related,Culture & Heritage,Premises & Asset Management,Premises related Expenditure,Repairs Alterations & Maintenance of Buildings,Building Maint - Estates,29/02/2024,507198,125,Ul Vs Ltd
Cultural & Related,Culture & Heritage,Premises & Asset Management,Premises related Expenditure,Repairs Alterations & Maintenance of Buildings,Building Maint - Estates,29/02/2024,507198,145,Ul Vs Ltd
Central Services to the Public,Management & Support Services,Premises & Asset Management,Premises related Expenditure,Repairs Alterations & Maintenance of Buildings,Building Maint - Estates,29/02/2024,507198,145,Ul Vs Ltd
Central Services to the Public,Management & Support Services,Premises & Asset Management,Premises related Expenditure,Repairs Alterations & Maintenance of Buildings,Building Maint - Estates,29/02/2024,507198,135,Ul Vs Ltd
Central Services to the Public,Management & Support Services,Premises & Asset Management,Premises related Expenditure,Repairs Alterations & Maintenance of Buildings,Building Maint - Estates,29/02/2024,507198,115,Ul Vs Ltd
Central Services to the Public,Management & Support Services,Premises & Asset Management,Premises related Expenditure,Repairs Alterations & Maintenance of Buildings,Building Maint - Estates,29/02/2024,507198,125,Ul Vs Ltd
Environmental & Regulatory,Regulatory Services,Premises & Asset Management,Premises related Expenditure,Repairs Alterations & Maintenance of Buildings,Building Maint - Estates,29/02/2024,507198,135,Ul Vs Ltd
Cultural & Related,Recreation & Sport,Community and Leisure ,Premises related Expenditure,Repairs Alterations & Maintenance of Buildings,Building Maint - Estates,29/02/2024,507198,135,Ul Vs Ltd
Cultural & Related,Recreation & Sport,Community and Leisure ,Premises related Expenditure,Repairs Alterations & Maintenance of Buildings,Building Maint - Estates,29/02/2024,507198,230,Ul Vs Ltd
Environmental & Regulatory,"Cemetery, Cremation and Mortuary Services",Community and Leisure ,Premises related Expenditure,Repairs Alterations & Maintenance of Buildings,Building Maint - Estates,29/02/2024,507198,115,Ul Vs Ltd
Environmental & Regulatory,"Cemetery, Cremation and Mortuary Services",Community and Leisure ,Premises related Expenditure,Repairs Alterations & Maintenance of Buildings,Building Maint - Estates,29/02/2024,507198,125,Ul Vs Ltd
Cultural & Related,Open Spaces,Community and Leisure ,Premises related Expenditure,Repairs Alterations & Maintenance of Buildings,Building Maint - Estates,29/02/2024,507198,115,Ul Vs Ltd
Cultural & Related,Culture & Heritage,Community and Leisure ,Premises related Expenditure,Repairs Alterations & Maintenance of Buildings,Building Maint - Estates,29/02/2024,507198,325,Ul Vs Ltd
"Highways, Roads & Transport",Parking Services,Plan Pol & Transport,Premises related Expenditure,Repairs Alterations & Maintenance of Buildings,Building Maint - Estates,29/02/2024,507198,125,Ul Vs Ltd
Cultural & Related,Culture & Heritage,Community and Leisure ,Supplies & Services,Miscellaneous Expenses,Booking Of Acts,08/02/2024,505427,4565,Sweeney Entertainments
Housing Services,Homelessness,Housing and Environmental Health ,Supplies & Services,Grants & Subscriptions,Grants,01/02/2024,504875,5484.63,Aster Group
External Trading Accounts,Economic Development,Premises & Asset Management,Supplies & Services,Miscellaneous Expenses,Waste Collection,15/02/2024,505957,4582.77,Grist Environmental
"Highways, Roads & Transport",Parking Services,Plan Pol & Transport,Premises related Expenditure,Repairs Alterations & Maintenance of Buildings,Building Maint - Non Estates,29/02/2024,507194,4597,Stq Vantage Limited
Cultural & Related,Culture & Heritage,Community and Leisure ,Supplies & Services,Miscellaneous Expenses,Booking Of Acts,29/02/2024,507598,4640,Barry Collings Entertainments
Cultural & Related,Open Spaces,Community and Leisure ,Premises related Expenditure,Repairs Alterations & Maintenance of Buildings,Estates premises costs - AMP,08/02/2024,503995,4770,Vesper Conservation & Ecology Ltd
External Trading Accounts,Business Parks,Premises & Asset Management,Supplies & Services,Services,Professional Fees,15/02/2024,505932,4960.55,Rocon Contractors Ltd
Environmental & Regulatory,Regulatory Services,Housing and Environmental Health ,Supplies & Services,Grants and subscriptions,Capital Grants,15/02/2024,506203,5963.51,Kingkraft Ltd
Central Services to the Public,Management & Support Services,Premises & Asset Management,Premises related Expenditure,Energy Costs,Gas,15/02/2024,506011,5224.27,Totalenergies Gas & Power Ltd
Central Services to the Public,Management & Support Services,Premises & Asset Management,Premises related Expenditure,Energy Costs,Gas,15/02/2024,506095,5298.37,Totalenergies Gas & Power Ltd
Cultural & Related,Culture & Heritage,Community and Leisure ,Supplies & Services,Miscellaneous Expenses,Booking Of Acts,01/02/2024,504598,5355.34,Avalon Management Group Ltd
Environmental & Regulatory,Regulatory Services,Housing and Environmental Health ,Supplies & Services,Grants and subscriptions,Capital Grants,29/02/2024,507233,6437.71,Northfield Property Solutions Limited
Environmental & Regulatory,"Cemetery, Cremation and Mortuary Services",Community and Leisure ,Premises related Expenditure,Repairs Alterations & Maintenance of Buildings,Estates premises costs - AMP,15/02/2024,506178,5383.37,Universal Stone Limited
Cultural & Related,Open Spaces,Community and Leisure ,Supplies & Services,"Equipment, Furniture & Materials",Purchase Equip + Materials,15/02/2024,498313,5402.1,Downs View Nurseries Ltd
Environmental & Regulatory,Regulatory Services,Housing and Environmental Health ,Supplies & Services,Grants and subscriptions,Capital Grants,29/02/2024,507690,6525.48,Lifestyle Solutions
Central Services to the Public,Local Land Charges,Legal & Democratic,Supplies & Services,Miscellaneous Expenses,Land Charges Fees,29/02/2024,506781,5452,Hampshire County Council
Central Services to the Public,Management & Support Services,Premises & Asset Management,Third Party Payments,Other Establishments,Private Contractors,22/02/2024,506793,5855.76,Doorgear Limited
Central Services to the Public,Elections,Legal & Democratic,Supplies & Services,Services,Professional Fees,15/02/2024,505994,7364.2,Election Claims Unit
Environmental & Regulatory,Regulatory Services,Housing and Environmental Health ,Supplies & Services,Grants and subscriptions,Capital Grants,15/02/2024,506207,7431.12,Rocon Contractors Ltd
Environmental & Regulatory,Regulatory Services,Housing and Environmental Health ,Supplies & Services,Grants and subscriptions,Capital Grants,29/02/2024,507678,7473.26,Hazel & West Ltd
Environmental & Regulatory,Regulatory Services,Housing and Environmental Health ,Supplies & Services,Grants and subscriptions,Capital Grants,08/02/2024,505563,7500,Northfield Property Solutions Limited
Environmental & Regulatory,Regulatory Services,Housing and Environmental Health ,Supplies & Services,Grants and subscriptions,Capital Grants,01/02/2024,504844,7503.65,Danson Developments Ltd
Planning & Development,Planning Policy,Plan Pol & Transport,Supplies & Services,"Printing, Stationery & General Office Expenses",External Printing,22/02/2024,506529,7629,Cedar Group
Planning & Development,Development Control,Planning & Building,Third Party Payments,Commuted Sum,s106 Developer contributions,29/02/2024,507682,7638,North Baddesley P C
Cultural & Related,Open Spaces,Community and Leisure ,Premises related Expenditure,Repairs Alterations & Maintenance of Buildings,Estates premises costs - AMP,29/02/2024,503097,6510.13,Gristwood & Toms Ltd
"Highways, Roads & Transport",Highways and roads - maintenance,Plan Pol & Transport,Premises related Expenditure,Repairs Alterations & Maintenance of Buildings,General Repairs,22/02/2024,506827,6808.4,Spear Electrical Limited
Central Services to the Public,Management & Support Services,Premises & Asset Management,Premises related Expenditure,Energy Costs,Gas,22/02/2024,506121,7001.05,Totalenergies Gas & Power Ltd
Environmental & Regulatory,Regulatory Services,Housing and Environmental Health ,Supplies & Services,Grants and subscriptions,Capital Grants,01/02/2024,504842,9176.23,Lifestyle Solutions
Central Services to the Public,Management & Support Services,IT,Supplies & Services,"Equipment, Furniture & Materials",IT Supp and Serv AMP,08/02/2024,503197,7800,Misco Technologies Ltd
Planning & Development,Community Development,Community and Leisure ,Supplies & Services,Grants & Subscriptions,Grants,15/02/2024,506184,9735,Youth In Romsey
Central Services to the Public,Management & Support Services,Legal & Democratic,Employees,Indirect Employee Expenses,Agency Staff - Waged Posts,08/02/2024,504599,8576,Vivid Resourcing
Cultural & Related,Culture & Heritage,Community and Leisure ,Supplies & Services,Miscellaneous Expenses,Booking Of Acts,01/02/2024,504619,8727,Sweeney Entertainments
Planning & Development,Development Control,Planning & Building,Supplies & Services,Services,Legal Fees,08/02/2024,504600,9126.7,Sharpe Pritchard Llp
Central Services to the Public,Management & Support Services,Premises & Asset Management,Premises related Expenditure,Energy Costs,Electricity,08/02/2024,503545,9237.96,Npower
Central Services to the Public,Management & Support Services,Premises & Asset Management,Third Party Payments,Other Establishments,Private Contractors,01/02/2024,504580,9375,Corrigenda Ltd
External Trading Accounts,Business Parks,Premises & Asset Management,Premises related Expenditure,Energy Costs,Electricity,15/02/2024,499400,113.33,Hampshire County Council
Cultural & Related,Recreation & Sport,Premises & Asset Management,Premises related Expenditure,Energy Costs,Electricity,15/02/2024,499400,110.13,Hampshire County Council
Cultural & Related,Open Spaces,Community and Leisure ,Premises related Expenditure,Energy Costs,Electricity,15/02/2024,499400,502.7,Hampshire County Council
Cultural & Related,Culture & Heritage,Community and Leisure ,Premises related Expenditure,Energy Costs,Electricity,15/02/2024,499400,123.25,Hampshire County Council
"Highways, Roads & Transport",Highways and roads - maintenance,Plan Pol & Transport,Premises related Expenditure,Energy Costs,Electricity,15/02/2024,499400,165.37,Hampshire County Council
"Highways, Roads & Transport",Parking Services,Plan Pol & Transport,Premises related Expenditure,Energy Costs,Electricity,15/02/2024,499400,8589.23,Hampshire County Council
Central Services to the Public,Management & Support Services,IT,Supplies & Services,Communications & Computing,Software Maintenance,15/02/2024,504295,11576,Waterford Technologies Ltd
"Highways, Roads & Transport",Parking Services,Plan Pol & Transport,Premises related Expenditure,Repairs Alterations & Maintenance of Buildings,Car Park General Repairs,08/02/2024,505571,9811.49,Irvine Grenson Ltd
Central Services to the Public,Management & Support Services,Premises & Asset Management,Premises related Expenditure,Energy Costs,Electricity,01/02/2024,501580,9942.27,Npower
Central Services to the Public,Management & Support Services,Legal & Democratic,Supplies & Services,Communications & Computing,Software Maintenance,22/02/2024,506921,1606.83,Scc
Central Services to the Public,Local Land Charges,Legal & Democratic,Supplies & Services,Communications & Computing,Software Maintenance,22/02/2024,506921,1020.65,Scc
Environmental & Regulatory,Regulatory Services,Legal & Democratic,Supplies & Services,Communications & Computing,Software Maintenance,22/02/2024,506921,204.13,Scc
Central Services to the Public,Management & Support Services,Chief Executive's,Supplies & Services,Communications & Computing,Software Maintenance,22/02/2024,506921,737.29,Scc
Central Services to the Public,Management & Support Services,HR Services,Supplies & Services,Communications & Computing,Software Maintenance,22/02/2024,506921,331.48,Scc
Central Services to the Public,Management & Support Services,Premises & Asset Management,Supplies & Services,Communications & Computing,Software Maintenance,22/02/2024,506921,127.35,Scc
Central Services to the Public,Management & Support Services,IT,Supplies & Services,Communications & Computing,Software Maintenance,22/02/2024,506921,127.35,Scc
Central Services to the Public,Management & Support Services,Community and Leisure ,Supplies & Services,Communications & Computing,Software Maintenance,22/02/2024,506921,737.29,Scc
Planning & Development,Development Control,Planning & Building,Supplies & Services,Communications & Computing,Computer Software,22/02/2024,506921,3674.34,Scc
Planning & Development,Building Control,Planning & Building,Supplies & Services,"Equipment, Furniture & Materials",Purchase Equip + Materials,22/02/2024,506921,816.52,Scc
Central Services to the Public,Management & Support Services,Chief Executive's,Supplies & Services,Communications & Computing,Software Maintenance,22/02/2024,506921,339.1,Scc
Planning & Development,Planning Policy,Plan Pol & Transport,Supplies & Services,Communications & Computing,Software Maintenance,22/02/2024,506921,204.13,Scc
Central Services to the Public,Management & Support Services,Environmental,Supplies & Services,Communications & Computing,Software Maintenance,22/02/2024,506921,127.35,Scc
Planning & Development,Planning Policy,Plan Pol & Transport,Supplies & Services,Services,Project Consultancy - Policy,15/02/2024,506196,10860,Haskoningdhv Uk Limited
Central Services to the Public,Local Tax Collection,Revenues,Supplies & Services,Services,Professional Fees,15/02/2024,505627,11156,Policy In Practice
Environmental & Regulatory,Waste management,Environmental,Supplies & Services,"Equipment, Furniture & Materials",Purchase Equip + Materials,08/02/2024,503094,11310,Ipl Plastics (Uk Ltd
Environmental & Regulatory,Waste management,Environmental,Supplies & Services,"Equipment, Furniture & Materials",Purchase Equip + Materials,15/02/2024,505634,11310,Ipl Plastics (Uk Ltd
Central Services to the Public,Management & Support Services,Premises & Asset Management,Premises related Expenditure,Energy Costs,Electricity,22/02/2024,506617,11471.47,Npower
Central Services to the Public,Management & Support Services,HR Services,Supplies & Services,Services,Training Courses,01/02/2024,501384,13860,Sparsholt College Hampshire
Central Services to the Public,Management & Support Services,Environmental,Transport Related Expenditure,Direct Transport Costs,Vehicles and Plant,22/02/2024,506916,12993,A T H Machinery Ltd
Planning & Development,Development Control,Planning & Building,Third Party Payments,Commuted Sum,CIL Contribution,15/02/2024,506214,17259.86,Michelmersh & Timsbury Parish Council
Central Services to the Public,Management & Support Services,HR Services,Supplies & Services,Services,Training Courses,01/02/2024,501383,17988,Sparsholt College Hampshire
Planning & Development,Development Control,Planning & Building,Third Party Payments,Commuted Sum,s106 Developer contributions,22/02/2024,506925,20000,Picket Piece Village Hall
Central Services to the Public,Management & Support Services,Environmental,Transport Related Expenditure,Direct Transport Costs,Vehicles and Plant,01/02/2024,504783,17495,T H White Ltd
Central Services to the Public,Management & Support Services,Environmental,Transport Related Expenditure,Direct Transport Costs,Vehicles and Plant,15/02/2024,504784,19000,T H White Ltd
Central Services to the Public,Management & Support Services,Estates and Economic Development ,Third Party Payments,Private contractors,Main Contractor Costs,08/02/2024,505483,19702.7,Precision Projects (South East) Ltd
Central Services,Corporate & Democratic Core,Corporate & Democratic,Supplies & Services,Services,Project Consultancy - Policy,15/02/2024,505955,19880,Cadence Innova Ltd
Central Services to the Public,Management & Support Services,IT,Supplies & Services,"Equipment, Furniture & Materials",IT Supp and Serv AMP,22/02/2024,506666,20205,Misco Technologies Ltd
Central Services,Corporate & Democratic Core,Corporate & Democratic,Supplies & Services,Communications & Computing,Computer Software,15/02/2024,503194,21146.79,Civica Uk Ltd
Central Services,Corporate & Democratic Core,Corporate & Democratic,Supplies & Services,Services,Project Consultancy - Policy,22/02/2024,502212,22674,Newsteer Ltd
Environmental & Regulatory,Street Cleansing (not chargeable to Highways),Environmental,Third Party Payments,Other Establishments,Private Contractors,29/02/2024,506531,24283.59,Forest Traffic Services Ltd
Cultural & Related,Regulatory Services,Community and Leisure ,Third Party Payments,Private contractors,Main Contractor Costs,15/02/2024,506217,34448.76,Nhs Hampshire And Isle Of Wight Icb
Central Services to the Public,Management & Support Services,IT,Supplies & Services,Communications & Computing,Software Maintenance,08/02/2024,504909,30438.51,Phoenix Software Ltd
Cultural & Related,Regulatory Services,Community and Leisure ,Third Party Payments,Private contractors,Main Contractor Costs,29/02/2024,507673,37946.83,Monxton Parish Council
Cultural & Related,Regulatory Services,Community and Leisure ,Third Party Payments,Private contractors,Main Contractor Costs,01/02/2024,504852,41009.33,Monxton Parish Council
Central Services to the Public,Management & Support Services,Estates and Economic Development ,Third Party Payments,Private contractors,Main Contractor Costs,08/02/2024,505484,51253.51,Precision Projects (South East) Ltd
Planning & Development,Planning Policy,Plan Pol & Transport,Supplies & Services,Services,Project Consultancy - Policy,22/02/2024,504579,71026,Hampshire County Council
Central Services to the Public,Management & Support Services,HR Services,Supplies & Services,Communications & Computing,Software Maintenance,22/02/2024,504911,33.76,Phoenix Software Ltd
Central Services to the Public,Management & Support Services,Premises & Asset Management,Supplies & Services,Communications & Computing,Software Maintenance,22/02/2024,504911,303.8,Phoenix Software Ltd
Central Services to the Public,Management & Support Services,Finance,Supplies & Services,Communications & Computing,Software Maintenance,22/02/2024,504911,33.76,Phoenix Software Ltd
Environmental & Regulatory,Regulatory Services,Housing and Environmental Health ,Supplies & Services,Communications & Computing,Software Maintenance,22/02/2024,504911,135.03,Phoenix Software Ltd
Central Services to the Public,Management & Support Services,IT,Supplies & Services,Communications & Computing,Software Maintenance,22/02/2024,504911,129079.4,Phoenix Software Ltd
Central Services to the Public,Management & Support Services,Chief Executive's,Supplies & Services,Communications & Computing,Software Maintenance,22/02/2024,504911,471.97,Phoenix Software Ltd
Central Services,Corporate & Democratic Core,Corporate & Democratic,Supplies & Services,Communications & Computing,Software Maintenance,22/02/2024,504911,810.12,Phoenix Software Ltd
Cultural & Related,Regulatory Services,Community and Leisure ,Third Party Payments,Private contractors,Main Contractor Costs,08/02/2024,505554,176372.74,North Baddesley P C
